Workbook

Sheet Sheet1
A1: 文物采样点 | B1: 二氧化硅(SiO2) | C1: 氧化钠(Na2O) | D1: 氧化钾(K2O) | E1: 氧化钙(CaO) | F1: 氧化镁(MgO) | G1: 氧化铝(Al2O3) | H1: 氧化铁(Fe2O3) | I1: 氧化铜(CuO) | J1: 氧化铅(PbO) | K1: 氧化钡(BaO) | L1: 五氧化二磷(P2O5) | M1: 氧化锶(SrO) | N1: 氧化锡(SnO2) | O1: 二氧化硫(SO2) | P1: 百分比 | Q1: 文物编号 | R1: 纹饰 | S1: 类型 | T1: 颜色 | U1: 表面风化
A2: 01 | B2: 69.33 | C2: 0 | D2: 9.99 | E2: 6.32 | F2: 0.87 | G2: 3.93 | H2: 1.74 | I2: 3.87 | J2: 0 | K2: 0 | L2: 1.17 | M2: 0 | N2: 0 | O2: 0.39 | P2: 97.61 | Q2: 01 | R2: C | S2: 高钾 | T2: 蓝绿 | U2: 无风化
A3: 02 | B3: 36.28 | C3: 0 | D3: 1.05 | E3: 2.34 | F3: 1.18 | G3: 5.73 | H3: 1.86 | I3: 0.26 | J3: 47.43 | K3: 0 | L3: 3.57 | M3: 0.19 | N3: 0 | O3: 0 | P3: 99.89 | Q3: 02 | R3: A | S3: 铅钡 | T3: 浅蓝 | U3: 风化
A4: 03部位1 | B4: 87.05 | C4: 0 | D4: 5.19 | E4: 2.01 | F4: 0 | G4: 4.06 | H4: 0 | I4: 0.78 | J4: 0.25 | K4: 0 | L4: 0.66 | M4: 0 | N4: 0 | O4: 0 | P4: 100 | Q4: 03 | R4: A | S4: 高钾 | T4: 蓝绿 | U4: 无风化
A5: 03部位2 | B5: 61.71 | C5: 0 | D5: 12.37 | E5: 5.87 | F5: 1.11 | G5: 5.5 | H5: 2.16 | I5: 5.09 | J5: 1.41 | K5: 2.86 | L5: 0.7 | M5: 0.1 | N5: 0 | O5: 0 | P5: 98.88 | Q5: 03 | R5: A | S5: 高钾 | T5: 蓝绿 | U5: 无风化
A6: 04 | B6: 65.88 | C6: 0 | D6: 9.67 | E6: 7.12 | F6: 1.56 | G6: 6.44 | H6: 2.06 | I6: 2.18 | J6: 0 | K6: 0 | L6: 0.79 | M6: 0 | N6: 0 | O6: 0.36 | P6: 96.06 | Q6: 04 | R6: A | S6: 高钾 | T6: 蓝绿 | U6: 无风化
A7: 05 | B7: 61.58 | C7: 0 | D7: 10.95 | E7: 7.35 | F7: 1.77 | G7: 7.5 | H7: 2.62 | I7: 3.27 | J7: 0 | K7: 0 | L7: 0.94 | M7: 0.06 | N7: 0 | O7: 0.47 | P7: 96.51 | Q7: 05 | R7: A | S7: 高钾 | T7: 蓝绿 | U7: 无风化
A8: 06部位1 | B8: 67.65 | C8: 0 | D8: 7.37 | E8: 0 | F8: 1.98 | G8: 11.15 | H8: 2.39 | I8: 2.51 | J8: 0.2 | K8: 1.38 | L8: 4.18 | M8: 0.11 | N8: 0 | O8: 0 | P8: 98.92 | Q8: 06 | R8: A | S8: 高钾 | T8: 蓝绿 | U8: 无风化
A9: 06部位2 | B9: 59.81 | C9: 0 | D9: 7.68 | E9: 5.41 | F9: 1.73 | G9: 10.05 | H9: 6.04 | I9: 2.18 | J9: 0.35 | K9: 0.97 | L9: 4.5 | M9: 0.12 | N9: 0 | O9: 0 | P9: 98.84 | Q9: 06 | R9: A | S9: 高钾 | T9: 蓝绿 | U9: 无风化
A10: 07 | B10: 92.63 | C10: 0 | D10: 0 | E10: 1.07 | F10: 0 | G10: 1.98 | H10: 0.17 | I10: 3.24 | J10: 0 | K10: 0 | L10: 0.61 | M10: 0 | N10: 0 | O10: 0 | P10: 99.7 | Q10: 07 | R10: B | S10: 高钾 | T10: 蓝绿 | U10: 风化
A11: 08 | B11: 20.14 | C11: 0 | D11: 0 | E11: 1.48 | F11: 0 | G11: 1.34 | H11: 0 | I11: 10.41 | J11: 28.68 | K11: 31.23 | L11: 3.59 | M11: 0.37 | N11: 0 | O11: 2.58 | P11: 99.82 | Q11: 08 | R11: C | S11: 铅钡 | T11: 紫 | U11: 风化
A12: 08严重风化点 | B12: 4.61 | C12: 0 | D12: 0 | E12: 3.19 | F12: 0 | G12: 1.11 | H12: 0 | I12: 3.14 | J12: 32.45 | K12: 30.62 | L12: 7.56 | M12: 0.53 | N12: 0 | O12: 15.03 | P12: 98.24 | Q12: 08 | R12: C | S12: 铅钡 | T12: 紫 | U12: 风化
A13: 09 | B13: 95.02 | C13: 0 | D13: 0.59 | E13: 0.62 | F13: 0 | G13: 1.32 | H13: 0.32 | I13: 1.55 | J13: 0 | K13: 0 | L13: 0.35 | M13: 0 | N13: 0 | O13: 0 | P13: 99.77 | Q13: 09 | R13: B | S13: 高钾 | T13: 蓝绿 | U13: 风化
A14: 10 | B14: 96.77 | C14: 0 | D14: 0.92 | E14: 0.21 | F14: 0 | G14: 0.81 | H14: 0.26 | I14: 0.84 | J14: 0 | K14: 0 | L14: 0 | M14: 0 | N14: 0 | O14: 0 | P14: 99.81 | Q14: 10 | R14: B | S14: 高钾 | T14: 蓝绿 | U14: 风化
A15: 11 | B15: 33.59 | C15: 0 | D15: 0.21 | E15: 3.51 | F15: 0.71 | G15: 2.69 | H15: 0 | I15: 4.93 | J15: 25.39 | K15: 14.61 | L15: 9.38 | M15: 0.37 | N15: 0 | O15: 0 | P15: 95.39 | Q15: 11 | R15: C | S15: 铅钡 | T15: 浅蓝 | U15: 风化
A16: 12 | B16: 94.29 | C16: 0 | D16: 1.01 | E16: 0.72 | F16: 0 | G16: 1.46 | H16: 0.29 | I16: 1.65 | J16: 0 | K16: 0 | L16: 0.15 | M16: 0 | N16: 0 | O16: 0 | P16: 99.57 | Q16: 12 | R16: B | S16: 高钾 | T16: 蓝绿 | U16: 风化
A17: 13 | B17: 59.01 | C17: 2.86 | D17: 12.53 | E17: 8.7 | F17: 0 | G17: 6.16 | H17: 2.88 | I17: 4.73 | J17: 0 | K17: 0 | L17: 1.27 | M17: 0 | N17: 0 | O17: 0 | P17: 98.14 | Q17: 13 | R17: C | S17: 高钾 | T17: 浅蓝 | U17: 无风化
A18: 14 | B18: 62.47 | C18: 3.38 | D18: 12.28 | E18: 8.23 | F18: 0.66 | G18: 9.23 | H18: 0.5 | I18: 0.47 | J18: 1.62 | K18: 0 | L18: 0.16 | M18: 0 | N18: 0 | O18: 0 | P18: 99 | Q18: 14 | R18: C | S18: 高钾 | T18: 深绿 | U18: 无风化
A19: 16 | B19: 65.18 | C19: 2.1 | D19: 14.52 | E19: 8.27 | F19: 0.52 | G19: 6.18 | H19: 0.42 | I19: 1.07 | J19: 0.11 | K19: 0 | L19: 0 | M19: 0.04 | N19: 0 | O19: 0 | P19: 98.41 | Q19: 16 | R19: C | S19: 高钾 | T19: 浅蓝 | U19: 无风化
A20: 18 | B20: 79.46 | C20: 0 | D20: 9.42 | E20: 0 | F20: 1.53 | G20: 3.05 | H20: 0 | I20: 0 | J20: 0 | K20: 0 | L20: 1.36 | M20: 0.07 | N20: 2.36 | O20: 0 | P20: 97.25 | Q20: 18 | R20: A | S20: 高钾 | T20: 深蓝 | U20: 无风化
A21: 19 | B21: 29.64 | C21: 0 | D21: 0 | E21: 2.93 | F21: 0.59 | G21: 3.57 | H21: 1.33 | I21: 3.51 | J21: 42.82 | K21: 5.35 | L21: 8.83 | M21: 0.19 | N21: 0 | O21: 0 | P21: 98.76 | Q21: 19 | R21: A | S21: 铅钡 | T21: 0 | U21: 风化
A22: 20 | B22: 37.36 | C22: 0 | D22: 0.71 | E22: 0 | F22: 0 | G22: 5.45 | H22: 1.51 | I22: 4.78 | J22: 9.3 | K22: 23.55 | L22: 5.75 | M22: 0 | N22: 0 | O22: 0 | P22: 88.41 | Q22: 20 | R22: A | S22: 铅钡 | T22: 浅蓝 | U22: 无风化
A23: 21 | B23: 76.68 | C23: 0 | D23: 0 | E23: 4.71 | F23: 1.22 | G23: 6.19 | H23: 2.37 | I23: 3.28 | J23: 1 | K23: 1.97 | L23: 1.1 | M23: 0 | N23: 0 | O23: 0 | P23: 98.52 | Q23: 21 | R23: A | S23: 高钾 | T23: 蓝绿 | U23: 无风化
A24: 22 | B24: 92.35 | C24: 0 | D24: 0.74 | E24: 1.66 | F24: 0.64 | G24: 3.5 | H24: 0.35 | I24: 0.55 | J24: 0 | K24: 0 | L24: 0.21 | M24: 0 | N24: 0 | O24: 0 | P24: 100 | Q24: 22 | R24: B | S24: 高钾 | T24: 蓝绿 | U24: 风化
A25: 23未风化点 | B25: 53.79 | C25: 7.92 | D25: 0 | E25: 0.5 | F25: 0.71 | G25: 1.42 | H25: 0 | I25: 2.99 | J25: 16.98 | K25: 11.86 | L25: 0 | M25: 0.33 | N25: 0 | O25: 0 | P25: 96.5 | Q25: 23 | R25: A | S25: 铅钡 | T25: 蓝绿 | U25: 风化
A26: 24 | B26: 31.94 | C26: 0 | D26: 0 | E26: 0.47 | F26: 0 | G26: 1.59 | H26: 0 | I26: 8.46 | J26: 29.14 | K26: 26.23 | L26: 0.14 | M26: 0.91 | N26: 0 | O26: 0 | P26: 98.88 | Q26: 24 | R26: C | S26: 铅钡 | T26: 紫 | U26: 无风化
A27: 25未风化点 | B27: 50.61 | C27: 2.31 | D27: 0 | E27: 0.63 | F27: 0 | G27: 1.9 | H27: 1.55 | I27: 1.12 | J27: 31.9 | K27: 6.65 | L27: 0.19 | M27: 0.2 | N27: 0 | O27: 0 | P27: 97.06 | Q27: 25 | R27: C | S27: 铅钡 | T27: 浅蓝 | U27: 风化
A28: 26 | B28: 19.79 | C28: 0 | D28: 0 | E28: 1.44 | F28: 0 | G28: 0.7 | H28: 0 | I28: 10.57 | J28: 29.53 | K28: 32.25 | L28: 3.13 | M28: 0.45 | N28: 0 | O28: 1.96 | P28: 99.82 | Q28: 26 | R28: C | S28: 铅钡 | T28: 紫 | U28: 风化
A29: 26严重风化点 | B29: 3.72 | C29: 0 | D29: 0.4 | E29: 3.01 | F29: 0 | G29: 1.18 | H29: 0 | I29: 3.6 | J29: 29.92 | K29: 35.45 | L29: 6.04 | M29: 0.62 | N29: 0 | O29: 15.95 | P29: 99.89 | Q29: 26 | R29: C | S29: 铅钡 | T29: 紫 | U29: 风化
A30: 27 | B30: 92.72 | C30: 0 | D30: 0 | E30: 0.94 | F30: 0.54 | G30: 2.51 | H30: 0.2 | I30: 1.54 | J30: 0 | K30: 0 | L30: 0.36 | M30: 0 | N30: 0 | O30: 0 | P30: 98.81 | Q30: 27 | R30: B | S30: 高钾 | T30: 蓝绿 | U30: 风化
A31: 28未风化点 | B31: 68.08 | C31: 0 | D31: 0.26 | E31: 1.34 | F31: 1 | G31: 4.7 | H31: 0.41 | I31: 0.33 | J31: 17.14 | K31: 4.04 | L31: 1.04 | M31: 0.12 | N31: 0.23 | O31: 0 | P31: 98.69 | Q31: 28 | R31: A | S31: 铅钡 | T31: 浅蓝 | U31: 风化
A32: 29未风化点 | B32: 63.3 | C32: 0.92 | D32: 0.3 | E32: 2.98 | F32: 1.49 | G32: 14.34 | H32: 0.81 | I32: 0.74 | J32: 12.31 | K32: 2.03 | L32: 0.41 | M32: 0.25 | N32: 0 | O32: 0 | P32: 99.88 | Q32: 29 | R32: A | S32: 铅钡 | T32: 浅蓝 | U32: 风化
A33: 30部位1 | B33: 34.34 | C33: 0 | D33: 1.41 | E33: 4.49 | F33: 0.98 | G33: 4.35 | H33: 2.12 | I33: 0 | J33: 39.22 | K33: 10.29 | L33: 0 | M33: 0.35 | N33: 0.4 | O33: 0 | P33: 97.95 | Q33: 30 | R33: A | S33: 铅钡 | T33: 深蓝 | U33: 无风化
A34: 30部位2 | B34: 36.93 | C34: 0 | D34: 0 | E34: 4.24 | F34: 0.51 | G34: 3.86 | H34: 2.74 | I34: 0 | J34: 37.74 | K34: 10.35 | L34: 1.41 | M34: 0.48 | N34: 0.44 | O34: 0 | P34: 98.7 | Q34: 30 | R34: A | S34: 铅钡 | T34: 深蓝 | U34: 无风化
A35: 31 | B35: 65.91 | C35: 0 | D35: 0 | E35: 1.6 | F35: 0.89 | G35: 3.11 | H35: 4.59 | I35: 0.44 | J35: 16.55 | K35: 3.42 | L35: 1.62 | M35: 0.3 | N35: 0 | O35: 0 | P35: 98.43 | Q35: 31 | R35: C | S35: 铅钡 | T35: 紫 | U35: 无风化
A36: 32 | B36: 69.71 | C36: 0 | D36: 0.21 | E36: 0.46 | F36: 0 | G36: 2.36 | H36: 1 | I36: 0.11 | J36: 19.76 | K36: 4.88 | L36: 0.17 | M36: 0 | N36: 0 | O36: 0 | P36: 98.66 | Q36: 32 | R36: C | S36: 铅钡 | T36: 浅绿 | U36: 无风化
A37: 33 | B37: 75.51 | C37: 0 | D37: 0.15 | E37: 0.64 | F37: 1 | G37: 2.35 | H37: 0 | I37: 0.47 | J37: 16.16 | K37: 3.55 | L37: 0.13 | M37: 0 | N37: 0 | O37: 0 | P37: 99.96 | Q37: 33 | R37: C | S37: 铅钡 | T37: 深绿 | U37: 无风化
A38: 34 | B38: 35.78 | C38: 0 | D38: 0.25 | E38: 0.78 | F38: 0 | G38: 1.62 | H38: 0.47 | I38: 1.51 | J38: 46.55 | K38: 10 | L38: 0.34 | M38: 0.22 | N38: 0 | O38: 0 | P38: 97.52 | Q38: 34 | R38: C | S38: 铅钡 | T38: 深绿 | U38: 风化
A39: 35 | B39: 65.91 | C39: 0 | D39: 0 | E39: 0.38 | F39: 0 | G39: 1.44 | H39: 0.17 | I39: 0.16 | J39: 22.05 | K39: 5.68 | L39: 0.42 | M39: 0 | N39: 0 | O39: 0 | P39: 96.21 | Q39: 35 | R39: C | S39: 铅钡 | T39: 浅绿 | U39: 无风化
A40: 36 | B40: 39.57 | C40: 2.22 | D40: 0.14 | E40: 0.37 | F40: 0 | G40: 1.6 | H40: 0.32 | I40: 0.68 | J40: 41.61 | K40: 10.83 | L40: 0.07 | M40: 0.22 | N40: 0 | O40: 0 | P40: 97.63 | Q40: 36 | R40: C | S40: 铅钡 | T40: 深绿 | U40: 风化
A41: 37 | B41: 60.12 | C41: 0 | D41: 0.23 | E41: 0.89 | F41: 0 | G41: 2.72 | H41: 0 | I41: 3.01 | J41: 17.24 | K41: 10.34 | L41: 1.46 | M41: 0.31 | N41: 0 | O41: 3.66 | P41: 99.98 | Q41: 37 | R41: C | S41: 铅钡 | T41: 深绿 | U41: 无风化
A42: 38 | B42: 32.93 | C42: 1.38 | D42: 0 | E42: 0.68 | F42: 0 | G42: 2.57 | H42: 0.29 | I42: 0.73 | J42: 49.31 | K42: 9.79 | L42: 0.48 | M42: 0.41 | N42: 0 | O42: 0 | P42: 98.57 | Q42: 38 | R42: C | S42: 铅钡 | T42: 深绿 | U42: 风化
A43: 39 | B43: 26.25 | C43: 0 | D43: 0 | E43: 1.11 | F43: 0 | G43: 0.5 | H43: 0 | I43: 0.88 | J43: 61.03 | K43: 7.22 | L43: 1.16 | M43: 0.61 | N43: 0 | O43: 0 | P43: 98.76 | Q43: 39 | R43: C | S43: 铅钡 | T43: 深绿 | U43: 风化
A44: 40 | B44: 16.71 | C44: 0 | D44: 0 | E44: 1.87 | F44: 0 | G44: 0.45 | H44: 0.19 | I44: 0 | J44: 70.21 | K44: 6.69 | L44: 1.77 | M44: 0.68 | N44: 0 | O44: 0 | P44: 98.57 | Q44: 40 | R44: C | S44: 铅钡 | T44: 0 | U44: 风化
A45: 41 | B45: 18.46 | C45: 0 | D45: 0.44 | E45: 4.96 | F45: 2.73 | G45: 3.33 | H45: 1.79 | I45: 0.19 | J45: 44.12 | K45: 9.76 | L45: 7.46 | M45: 0.47 | N45: 0 | O45: 0 | P45: 93.71 | Q45: 41 | R45: C | S45: 铅钡 | T45: 浅绿 | U45: 风化
A46: 42未风化点1 | B46: 51.26 | C46: 5.74 | D46: 0.15 | E46: 0.79 | F46: 1.09 | G46: 3.53 | H46: 0 | I46: 2.67 | J46: 21.88 | K46: 10.47 | L46: 0.08 | M46: 0.35 | N46: 0 | O46: 0 | P46: 98.01 | Q46: 42 | R46: A | S46: 铅钡 | T46: 浅蓝 | U46: 风化
A47: 42未风化点2 | B47: 51.33 | C47: 5.68 | D47: 0.35 | E47: 0 | F47: 1.16 | G47: 5.66 | H47: 0 | I47: 2.72 | J47: 20.12 | K47: 10.88 | L47: 0 | M47: 0 | N47: 0 | O47: 0 | P47: 97.9 | Q47: 42 | R47: A | S47: 铅钡 | T47: 浅蓝 | U47: 风化
A48: 43部位1 | B48: 12.41 | C48: 0 | D48: 0 | E48: 5.24 | F48: 0.89 | G48: 2.25 | H48: 0.76 | I48: 5.35 | J48: 59.85 | K48: 7.29 | L48: 0 | M48: 0.64 | N48: 0 | O48: 0 | P48: 94.68 | Q48: 43 | R48: C | S48: 铅钡 | T48: 浅蓝 | U48: 风化
A49: 43部位2 | B49: 21.7 | C49: 0 | D49: 0 | E49: 6.4 | F49: 0.95 | G49: 3.41 | H49: 1.39 | I49: 1.51 | J49: 44.75 | K49: 3.26 | L49: 12.83 | M49: 0.47 | N49: 0 | O49: 0 | P49: 96.67 | Q49: 43 | R49: C | S49: 铅钡 | T49: 浅蓝 | U49: 风化
A50: 44未风化点 | B50: 60.74 | C50: 3.06 | D50: 0.2 | E50: 2.14 | F50: 0 | G50: 12.69 | H50: 0.77 | I50: 0.43 | J50: 13.61 | K50: 5.22 | L50: 0 | M50: 0.26 | N50: 0 | O50: 0 | P50: 99.12 | Q50: 44 | R50: A | S50: 铅钡 | T50: 浅蓝 | U50: 风化
A51: 45 | B51: 61.28 | C51: 2.66 | D51: 0.11 | E51: 0.84 | F51: 0.74 | G51: 5 | H51: 0 | I51: 0.53 | J51: 15.99 | K51: 10.96 | L51: 0 | M51: 0.23 | N51: 0 | O51: 0 | P51: 98.34 | Q51: 45 | R51: A | S51: 铅钡 | T51: 浅蓝 | U51: 无风化
A52: 46 | B52: 55.21 | C52: 0 | D52: 0.25 | E52: 0 | F52: 1.67 | G52: 4.79 | H52: 0 | I52: 0.77 | J52: 25.25 | K52: 10.06 | L52: 0.2 | M52: 0.43 | N52: 0 | O52: 0 | P52: 98.63 | Q52: 46 | R52: A | S52: 铅钡 | T52: 浅蓝 | U52: 无风化
A53: 47 | B53: 51.54 | C53: 4.66 | D53: 0.29 | E53: 0.87 | F53: 0.61 | G53: 3.06 | H53: 0 | I53: 0.65 | J53: 25.4 | K53: 9.23 | L53: 0.1 | M53: 0.85 | N53: 0 | O53: 0 | P53: 97.26 | Q53: 47 | R53: A | S53: 铅钡 | T53: 浅蓝 | U53: 无风化
A54: 48 | B54: 53.33 | C54: 0.8 | D54: 0.32 | E54: 2.82 | F54: 1.54 | G54: 13.65 | H54: 1.03 | I54: 0 | J54: 15.71 | K54: 7.31 | L54: 1.1 | M54: 0.25 | N54: 1.31 | O54: 0 | P54: 99.17 | Q54: 48 | R54: A | S54: 铅钡 | T54: 0 | U54: 风化
A55: 49 | B55: 28.79 | C55: 0 | D55: 0 | E55: 4.58 | F55: 1.47 | G55: 5.38 | H55: 2.74 | I55: 0.7 | J55: 34.18 | K55: 6.1 | L55: 11.1 | M55: 0.46 | N55: 0 | O55: 0 | P55: 95.5 | Q55: 49 | R55: A | S55: 铅钡 | T55: 黑 | U55: 风化
A56: 49未风化点 | B56: 54.61 | C56: 0 | D56: 0.3 | E56: 2.08 | F56: 1.2 | G56: 6.5 | H56: 1.27 | I56: 0.45 | J56: 23.02 | K56: 4.19 | L56: 4.32 | M56: 0.3 | N56: 0 | O56: 0 | P56: 98.24 | Q56: 49 | R56: A | S56: 铅钡 | T56: 黑 | U56: 风化
A57: 50 | B57: 17.98 | C57: 0 | D57: 0 | E57: 3.19 | F57: 0.47 | G57: 1.87 | H57: 0.33 | I57: 1.13 | J57: 44 | K57: 14.2 | L57: 6.34 | M57: 0.66 | N57: 0 | O57: 0 | P57: 90.17 | Q57: 50 | R57: A | S57: 铅钡 | T57: 黑 | U57: 风化
A58: 50未风化点 | B58: 45.02 | C58: 0 | D58: 0 | E58: 3.12 | F58: 0.54 | G58: 4.16 | H58: 0 | I58: 0.7 | J58: 30.61 | K58: 6.22 | L58: 6.34 | M58: 0.23 | N58: 0 | O58: 0 | P58: 96.94 | Q58: 50 | R58: A | S58: 铅钡 | T58: 黑 | U58: 风化
A59: 51部位1 | B59: 24.61 | C59: 0 | D59: 0 | E59: 3.58 | F59: 1.19 | G59: 5.25 | H59: 1.19 | I59: 1.37 | J59: 40.24 | K59: 8.94 | L59: 8.1 | M59: 0.39 | N59: 0.47 | O59: 0 | P59: 95.33 | Q59: 51 | R59: C | S59: 铅钡 | T59: 浅蓝 | U59: 风化
A60: 51部位2 | B60: 21.35 | C60: 0 | D60: 0 | E60: 5.13 | F60: 1.45 | G60: 2.51 | H60: 0.42 | I60: 0.75 | J60: 51.34 | K60: 0 | L60: 8.75 | M60: 0 | N60: 0 | O60: 0 | P60: 91.7 | Q60: 51 | R60: C | S60: 铅钡 | T60: 浅蓝 | U60: 风化
A61: 52 | B61: 25.74 | C61: 1.22 | D61: 0 | E61: 2.27 | F61: 0.55 | G61: 1.16 | H61: 0.23 | I61: 0.7 | J61: 47.42 | K61: 8.64 | L61: 5.71 | M61: 0.44 | N61: 0 | O61: 0 | P61: 94.08 | Q61: 52 | R61: C | S61: 铅钡 | T61: 浅蓝 | U61: 风化
A62: 53未风化点 | B62: 63.66 | C62: 3.04 | D62: 0.11 | E62: 0.78 | F62: 1.14 | G62: 6.06 | H62: 0 | I62: 0.54 | J62: 13.66 | K62: 8.99 | L62: 0 | M62: 0.27 | N62: 0 | O62: 0 | P62: 98.25 | Q62: 53 | R62: A | S62: 铅钡 | T62: 浅蓝 | U62: 风化
A63: 54 | B63: 22.28 | C63: 0 | D63: 0.32 | E63: 3.19 | F63: 1.28 | G63: 4.15 | H63: 0 | I63: 0.83 | J63: 55.46 | K63: 7.04 | L63: 4.24 | M63: 0.88 | N63: 0 | O63: 0 | P63: 99.67 | Q63: 54 | R63: C | S63: 铅钡 | T63: 浅蓝 | U63: 风化
A64: 54严重风化点 | B64: 17.11 | C64: 0 | D64: 0 | E64: 0 | F64: 1.11 | G64: 3.65 | H64: 0 | I64: 1.34 | J64: 58.46 | K64: 0 | L64: 14.13 | M64: 1.12 | N64: 0 | O64: 0 | P64: 96.92 | Q64: 54 | R64: C | S64: 铅钡 | T64: 浅蓝 | U64: 风化
A65: 55 | B65: 49.01 | C65: 2.71 | D65: 0 | E65: 1.13 | F65: 0 | G65: 1.45 | H65: 0 | I65: 0.86 | J65: 32.92 | K65: 7.95 | L65: 0.35 | M65: 0 | N65: 0 | O65: 0 | P65: 96.38 | Q65: 55 | R65: C | S65: 铅钡 | T65: 绿 | U65: 无风化
A66: 56 | B66: 29.15 | C66: 0 | D66: 0 | E66: 1.21 | F66: 0 | G66: 1.85 | H66: 0 | I66: 0.79 | J66: 41.25 | K66: 15.45 | L66: 2.54 | M66: 0 | N66: 0 | O66: 0 | P66: 92.24 | Q66: 56 | R66: C | S66: 铅钡 | T66: 蓝绿 | U66: 风化
A67: 57 | B67: 25.42 | C67: 0 | D67: 0 | E67: 1.31 | F67: 0 | G67: 2.18 | H67: 0 | I67: 1.16 | J67: 45.1 | K67: 17.3 | L67: 0 | M67: 0 | N67: 0 | O67: 0 | P67: 92.47 | Q67: 57 | R67: C | S67: 铅钡 | T67: 蓝绿 | U67: 风化
A68: 58 | B68: 30.39 | C68: 0 | D68: 0.34 | E68: 3.49 | F68: 0.79 | G68: 3.52 | H68: 0.86 | I68: 3.13 | J68: 39.35 | K68: 7.66 | L68: 8.99 | M68: 0.24 | N68: 0 | O68: 0 | P68: 98.76 | Q68: 58 | R68: C | S68: 铅钡 | T68: 0 | U68: 风化

Sheet Sheet3
A1: 类型 | B1: 二氧化硅(SiO2) | C1: 氧化钠(Na2O) | D1: 氧化钾(K2O) | E1: 氧化钙(CaO) | F1: 氧化镁(MgO) | G1: 氧化铝(Al2O3) | H1: 氧化铁(Fe2O3) | I1: 氧化铜(CuO) | J1: 氧化铅(PbO) | K1: 氧化钡(BaO) | L1: 五氧化二磷(P2O5) | M1: 氧化锶(SrO) | N1: 氧化锡(SnO2) | O1: 二氧化硫(SO2) | P1: d
A2: =IF(P2="高钾",1,2) -> 1 | B2: 69.33 | C2: 0 | D2: 9.99 | E2: 6.32 | F2: 0.87 | G2: 3.93 | H2: 1.74 | I2: 3.87 | J2: 0 | K2: 0 | L2: 1.17 | M2: 0 | N2: 0 | O2: 0.39 | P2: 高钾
A3: =IF(P3="高钾",1,2) -> 2 | B3: 36.28 | C3: 0 | D3: 1.05 | E3: 2.34 | F3: 1.18 | G3: 5.73 | H3: 1.86 | I3: 0.26 | J3: 47.43 | K3: 0 | L3: 3.57 | M3: 0.19 | N3: 0 | O3: 0 | P3: 铅钡
A4: 1 | B4: 87.05 | C4: 0 | D4: 5.19 | E4: 2.01 | F4: 0 | G4: 4.06 | H4: 0 | I4: 0.78 | J4: 0.25 | K4: 0 | L4: 0.66 | M4: 0 | N4: 0 | O4: 0 | P4: 高钾
A5: 1 | B5: 61.71 | C5: 0 | D5: 12.37 | E5: 5.87 | F5: 1.11 | G5: 5.5 | H5: 2.16 | I5: 5.09 | J5: 1.41 | K5: 2.86 | L5: 0.7 | M5: 0.1 | N5: 0 | O5: 0 | P5: 高钾
A6: 1 | B6: 65.88 | C6: 0 | D6: 9.67 | E6: 7.12 | F6: 1.56 | G6: 6.44 | H6: 2.06 | I6: 2.18 | J6: 0 | K6: 0 | L6: 0.79 | M6: 0 | N6: 0 | O6: 0.36 | P6: 高钾
A7: 1 | B7: 61.58 | C7: 0 | D7: 10.95 | E7: 7.35 | F7: 1.77 | G7: 7.5 | H7: 2.62 | I7: 3.27 | J7: 0 | K7: 0 | L7: 0.94 | M7: 0.06 | N7: 0 | O7: 0.47 | P7: 高钾
A8: 1 | B8: 67.65 | C8: 0 | D8: 7.37 | E8: 0 | F8: 1.98 | G8: 11.15 | H8: 2.39 | I8: 2.51 | J8: 0.2 | K8: 1.38 | L8: 4.18 | M8: 0.11 | N8: 0 | O8: 0 | P8: 高钾
A9: 1 | B9: 59.81 | C9: 0 | D9: 7.68 | E9: 5.41 | F9: 1.73 | G9: 10.05 | H9: 6.04 | I9: 2.18 | J9: 0.35 | K9: 0.97 | L9: 4.5 | M9: 0.12 | N9: 0 | O9: 0 | P9: 高钾
A10: 1 | B10: 92.63 | C10: 0 | D10: 0 | E10: 1.07 | F10: 0 | G10: 1.98 | H10: 0.17 | I10: 3.24 | J10: 0 | K10: 0 | L10: 0.61 | M10: 0 | N10: 0 | O10: 0 | P10: 高钾
A11: 2 | B11: 20.14 | C11: 0 | D11: 0 | E11: 1.48 | F11: 0 | G11: 1.34 | H11: 0 | I11: 10.41 | J11: 28.68 | K11: 31.23 | L11: 3.59 | M11: 0.37 | N11: 0 | O11: 2.58 | P11: 铅钡
A12: 2 | B12: 4.61 | C12: 0 | D12: 0 | E12: 3.19 | F12: 0 | G12: 1.11 | H12: 0 | I12: 3.14 | J12: 32.45 | K12: 30.62 | L12: 7.56 | M12: 0.53 | N12: 0 | O12: 15.03 | P12: 铅钡
A13: 1 | B13: 95.02 | C13: 0 | D13: 0.59 | E13: 0.62 | F13: 0 | G13: 1.32 | H13: 0.32 | I13: 1.55 | J13: 0 | K13: 0 | L13: 0.35 | M13: 0 | N13: 0 | O13: 0 | P13: 高钾
A14: 1 | B14: 96.77 | C14: 0 | D14: 0.92 | E14: 0.21 | F14: 0 | G14: 0.81 | H14: 0.26 | I14: 0.84 | J14: 0 | K14: 0 | L14: 0 | M14: 0 | N14: 0 | O14: 0 | P14: 高钾
A15: 2 | B15: 33.59 | C15: 0 | D15: 0.21 | E15: 3.51 | F15: 0.71 | G15: 2.69 | H15: 0 | I15: 4.93 | J15: 25.39 | K15: 14.61 | L15: 9.38 | M15: 0.37 | N15: 0 | O15: 0 | P15: 铅钡
A16: 1 | B16: 94.29 | C16: 0 | D16: 1.01 | E16: 0.72 | F16: 0 | G16: 1.46 | H16: 0.29 | I16: 1.65 | J16: 0 | K16: 0 | L16: 0.15 | M16: 0 | N16: 0 | O16: 0 | P16: 高钾
A17: 1 | B17: 59.01 | C17: 2.86 | D17: 12.53 | E17: 8.7 | F17: 0 | G17: 6.16 | H17: 2.88 | I17: 4.73 | J17: 0 | K17: 0 | L17: 1.27 | M17: 0 | N17: 0 | O17: 0 | P17: 高钾
A18: 1 | B18: 62.47 | C18: 3.38 | D18: 12.28 | E18: 8.23 | F18: 0.66 | G18: 9.23 | H18: 0.5 | I18: 0.47 | J18: 1.62 | K18: 0 | L18: 0.16 | M18: 0 | N18: 0 | O18: 0 | P18: 高钾
A19: 1 | B19: 65.18 | C19: 2.1 | D19: 14.52 | E19: 8.27 | F19: 0.52 | G19: 6.18 | H19: 0.42 | I19: 1.07 | J19: 0.11 | K19: 0 | L19: 0 | M19: 0.04 | N19: 0 | O19: 0 | P19: 高钾
A20: 1 | B20: 79.46 | C20: 0 | D20: 9.42 | E20: 0 | F20: 1.53 | G20: 3.05 | H20: 0 | I20: 0 | J20: 0 | K20: 0 | L20: 1.36 | M20: 0.07 | N20: 2.36 | O20: 0 | P20: 高钾
A21: 2 | B21: 29.64 | C21: 0 | D21: 0 | E21: 2.93 | F21: 0.59 | G21: 3.57 | H21: 1.33 | I21: 3.51 | J21: 42.82 | K21: 5.35 | L21: 8.83 | M21: 0.19 | N21: 0 | O21: 0 | P21: 铅钡
A22: 2 | B22: 37.36 | C22: 0 | D22: 0.71 | E22: 0 | F22: 0 | G22: 5.45 | H22: 1.51 | I22: 4.78 | J22: 9.3 | K22: 23.55 | L22: 5.75 | M22: 0 | N22: 0 | O22: 0 | P22: 铅钡
A23: 1 | B23: 76.68 | C23: 0 | D23: 0 | E23: 4.71 | F23: 1.22 | G23: 6.19 | H23: 2.37 | I23: 3.28 | J23: 1 | K23: 1.97 | L23: 1.1 | M23: 0 | N23: 0 | O23: 0 | P23: 高钾
A24: 1 | B24: 92.35 | C24: 0 | D24: 0.74 | E24: 1.66 | F24: 0.64 | G24: 3.5 | H24: 0.35 | I24: 0.55 | J24: 0 | K24: 0 | L24: 0.21 | M24: 0 | N24: 0 | O24: 0 | P24: 高钾
A25: 2 | B25: 53.79 | C25: 7.92 | D25: 0 | E25: 0.5 | F25: 0.71 | G25: 1.42 | H25: 0 | I25: 2.99 | J25: 16.98 | K25: 11.86 | L25: 0 | M25: 0.33 | N25: 0 | O25: 0 | P25: 铅钡
A26: 2 | B26: 31.94 | C26: 0 | D26: 0 | E26: 0.47 | F26: 0 | G26: 1.59 | H26: 0 | I26: 8.46 | J26: 29.14 | K26: 26.23 | L26: 0.14 | M26: 0.91 | N26: 0 | O26: 0 | P26: 铅钡
A27: 2 | B27: 50.61 | C27: 2.31 | D27: 0 | E27: 0.63 | F27: 0 | G27: 1.9 | H27: 1.55 | I27: 1.12 | J27: 31.9 | K27: 6.65 | L27: 0.19 | M27: 0.2 | N27: 0 | O27: 0 | P27: 铅钡
A28: 2 | B28: 19.79 | C28: 0 | D28: 0 | E28: 1.44 | F28: 0 | G28: 0.7 | H28: 0 | I28: 10.57 | J28: 29.53 | K28: 32.25 | L28: 3.13 | M28: 0.45 | N28: 0 | O28: 1.96 | P28: 铅钡
A29: 2 | B29: 3.72 | C29: 0 | D29: 0.4 | E29: 3.01 | F29: 0 | G29: 1.18 | H29: 0 | I29: 3.6 | J29: 29.92 | K29: 35.45 | L29: 6.04 | M29: 0.62 | N29: 0 | O29: 15.95 | P29: 铅钡
A30: 1 | B30: 92.72 | C30: 0 | D30: 0 | E30: 0.94 | F30: 0.54 | G30: 2.51 | H30: 0.2 | I30: 1.54 | J30: 0 | K30: 0 | L30: 0.36 | M30: 0 | N30: 0 | O30: 0 | P30: 高钾
A31: 2 | B31: 68.08 | C31: 0 | D31: 0.26 | E31: 1.34 | F31: 1 | G31: 4.7 | H31: 0.41 | I31: 0.33 | J31: 17.14 | K31: 4.04 | L31: 1.04 | M31: 0.12 | N31: 0.23 | O31: 0 | P31: 铅钡
A32: 2 | B32: 63.3 | C32: 0.92 | D32: 0.3 | E32: 2.98 | F32: 1.49 | G32: 14.34 | H32: 0.81 | I32: 0.74 | J32: 12.31 | K32: 2.03 | L32: 0.41 | M32: 0.25 | N32: 0 | O32: 0 | P32: 铅钡
A33: 2 | B33: 34.34 | C33: 0 | D33: 1.41 | E33: 4.49 | F33: 0.98 | G33: 4.35 | H33: 2.12 | I33: 0 | J33: 39.22 | K33: 10.29 | L33: 0 | M33: 0.35 | N33: 0.4 | O33: 0 | P33: 铅钡
A34: 2 | B34: 36.93 | C34: 0 | D34: 0 | E34: 4.24 | F34: 0.51 | G34: 3.86 | H34: 2.74 | I34: 0 | J34: 37.74 | K34: 10.35 | L34: 1.41 | M34: 0.48 | N34: 0.44 | O34: 0 | P34: 铅钡
A35: 2 | B35: 65.91 | C35: 0 | D35: 0 | E35: 1.6 | F35: 0.89 | G35: 3.11 | H35: 4.59 | I35: 0.44 | J35: 16.55 | K35: 3.42 | L35: 1.62 | M35: 0.3 | N35: 0 | O35: 0 | P35: 铅钡
A36: 2 | B36: 69.71 | C36: 0 | D36: 0.21 | E36: 0.46 | F36: 0 | G36: 2.36 | H36: 1 | I36: 0.11 | J36: 19.76 | K36: 4.88 | L36: 0.17 | M36: 0 | N36: 0 | O36: 0 | P36: 铅钡
A37: 2 | B37: 75.51 | C37: 0 | D37: 0.15 | E37: 0.64 | F37: 1 | G37: 2.35 | H37: 0 | I37: 0.47 | J37: 16.16 | K37: 3.55 | L37: 0.13 | M37: 0 | N37: 0 | O37: 0 | P37: 铅钡
A38: 2 | B38: 35.78 | C38: 0 | D38: 0.25 | E38: 0.78 | F38: 0 | G38: 1.62 | H38: 0.47 | I38: 1.51 | J38: 46.55 | K38: 10 | L38: 0.34 | M38: 0.22 | N38: 0 | O38: 0 | P38: 铅钡
A39: 2 | B39: 65.91 | C39: 0 | D39: 0 | E39: 0.38 | F39: 0 | G39: 1.44 | H39: 0.17 | I39: 0.16 | J39: 22.05 | K39: 5.68 | L39: 0.42 | M39: 0 | N39: 0 | O39: 0 | P39: 铅钡
A40: 2 | B40: 39.57 | C40: 2.22 | D40: 0.14 | E40: 0.37 | F40: 0 | G40: 1.6 | H40: 0.32 | I40: 0.68 | J40: 41.61 | K40: 10.83 | L40: 0.07 | M40: 0.22 | N40: 0 | O40: 0 | P40: 铅钡
A41: 2 | B41: 60.12 | C41: 0 | D41: 0.23 | E41: 0.89 | F41: 0 | G41: 2.72 | H41: 0 | I41: 3.01 | J41: 17.24 | K41: 10.34 | L41: 1.46 | M41: 0.31 | N41: 0 | O41: 3.66 | P41: 铅钡
A42: 2 | B42: 32.93 | C42: 1.38 | D42: 0 | E42: 0.68 | F42: 0 | G42: 2.57 | H42: 0.29 | I42: 0.73 | J42: 49.31 | K42: 9.79 | L42: 0.48 | M42: 0.41 | N42: 0 | O42: 0 | P42: 铅钡
A43: 2 | B43: 26.25 | C43: 0 | D43: 0 | E43: 1.11 | F43: 0 | G43: 0.5 | H43: 0 | I43: 0.88 | J43: 61.03 | K43: 7.22 | L43: 1.16 | M43: 0.61 | N43: 0 | O43: 0 | P43: 铅钡
A44: 2 | B44: 16.71 | C44: 0 | D44: 0 | E44: 1.87 | F44: 0 | G44: 0.45 | H44: 0.19 | I44: 0 | J44: 70.21 | K44: 6.69 | L44: 1.77 | M44: 0.68 | N44: 0 | O44: 0 | P44: 铅钡
A45: 2 | B45: 18.46 | C45: 0 | D45: 0.44 | E45: 4.96 | F45: 2.73 | G45: 3.33 | H45: 1.79 | I45: 0.19 | J45: 44.12 | K45: 9.76 | L45: 7.46 | M45: 0.47 | N45: 0 | O45: 0 | P45: 铅钡
A46: 2 | B46: 51.26 | C46: 5.74 | D46: 0.15 | E46: 0.79 | F46: 1.09 | G46: 3.53 | H46: 0 | I46: 2.67 | J46: 21.88 | K46: 10.47 | L46: 0.08 | M46: 0.35 | N46: 0 | O46: 0 | P46: 铅钡
A47: 2 | B47: 51.33 | C47: 5.68 | D47: 0.35 | E47: 0 | F47: 1.16 | G47: 5.66 | H47: 0 | I47: 2.72 | J47: 20.12 | K47: 10.88 | L47: 0 | M47: 0 | N47: 0 | O47: 0 | P47: 铅钡
A48: 2 | B48: 12.41 | C48: 0 | D48: 0 | E48: 5.24 | F48: 0.89 | G48: 2.25 | H48: 0.76 | I48: 5.35 | J48: 59.85 | K48: 7.29 | L48: 0 | M48: 0.64 | N48: 0 | O48: 0 | P48: 铅钡
A49: 2 | B49: 21.7 | C49: 0 | D49: 0 | E49: 6.4 | F49: 0.95 | G49: 3.41 | H49: 1.39 | I49: 1.51 | J49: 44.75 | K49: 3.26 | L49: 12.83 | M49: 0.47 | N49: 0 | O49: 0 | P49: 铅钡
A50: 2 | B50: 60.74 | C50: 3.06 | D50: 0.2 | E50: 2.14 | F50: 0 | G50: 12.69 | H50: 0.77 | I50: 0.43 | J50: 13.61 | K50: 5.22 | L50: 0 | M50: 0.26 | N50: 0 | O50: 0 | P50: 铅钡
A51: 2 | B51: 61.28 | C51: 2.66 | D51: 0.11 | E51: 0.84 | F51: 0.74 | G51: 5 | H51: 0 | I51: 0.53 | J51: 15.99 | K51: 10.96 | L51: 0 | M51: 0.23 | N51: 0 | O51: 0 | P51: 铅钡
A52: 2 | B52: 55.21 | C52: 0 | D52: 0.25 | E52: 0 | F52: 1.67 | G52: 4.79 | H52: 0 | I52: 0.77 | J52: 25.25 | K52: 10.06 | L52: 0.2 | M52: 0.43 | N52: 0 | O52: 0 | P52: 铅钡
A53: 2 | B53: 51.54 | C53: 4.66 | D53: 0.29 | E53: 0.87 | F53: 0.61 | G53: 3.06 | H53: 0 | I53: 0.65 | J53: 25.4 | K53: 9.23 | L53: 0.1 | M53: 0.85 | N53: 0 | O53: 0 | P53: 铅钡
A54: 2 | B54: 53.33 | C54: 0.8 | D54: 0.32 | E54: 2.82 | F54: 1.54 | G54: 13.65 | H54: 1.03 | I54: 0 | J54: 15.71 | K54: 7.31 | L54: 1.1 | M54: 0.25 | N54: 1.31 | O54: 0 | P54: 铅钡
A55: 2 | B55: 28.79 | C55: 0 | D55: 0 | E55: 4.58 | F55: 1.47 | G55: 5.38 | H55: 2.74 | I55: 0.7 | J55: 34.18 | K55: 6.1 | L55: 11.1 | M55: 0.46 | N55: 0 | O55: 0 | P55: 铅钡
A56: 2 | B56: 54.61 | C56: 0 | D56: 0.3 | E56: 2.08 | F56: 1.2 | G56: 6.5 | H56: 1.27 | I56: 0.45 | J56: 23.02 | K56: 4.19 | L56: 4.32 | M56: 0.3 | N56: 0 | O56: 0 | P56: 铅钡
A57: 2 | B57: 17.98 | C57: 0 | D57: 0 | E57: 3.19 | F57: 0.47 | G57: 1.87 | H57: 0.33 | I57: 1.13 | J57: 44 | K57: 14.2 | L57: 6.34 | M57: 0.66 | N57: 0 | O57: 0 | P57: 铅钡
A58: 2 | B58: 45.02 | C58: 0 | D58: 0 | E58: 3.12 | F58: 0.54 | G58: 4.16 | H58: 0 | I58: 0.7 | J58: 30.61 | K58: 6.22 | L58: 6.34 | M58: 0.23 | N58: 0 | O58: 0 | P58: 铅钡
A59: 2 | B59: 24.61 | C59: 0 | D59: 0 | E59: 3.58 | F59: 1.19 | G59: 5.25 | H59: 1.19 | I59: 1.37 | J59: 40.24 | K59: 8.94 | L59: 8.1 | M59: 0.39 | N59: 0.47 | O59: 0 | P59: 铅钡
A60: 2 | B60: 21.35 | C60: 0 | D60: 0 | E60: 5.13 | F60: 1.45 | G60: 2.51 | H60: 0.42 | I60: 0.75 | J60: 51.34 | K60: 0 | L60: 8.75 | M60: 0 | N60: 0 | O60: 0 | P60: 铅钡
A61: 2 | B61: 25.74 | C61: 1.22 | D61: 0 | E61: 2.27 | F61: 0.55 | G61: 1.16 | H61: 0.23 | I61: 0.7 | J61: 47.42 | K61: 8.64 | L61: 5.71 | M61: 0.44 | N61: 0 | O61: 0 | P61: 铅钡
A62: 2 | B62: 63.66 | C62: 3.04 | D62: 0.11 | E62: 0.78 | F62: 1.14 | G62: 6.06 | H62: 0 | I62: 0.54 | J62: 13.66 | K62: 8.99 | L62: 0 | M62: 0.27 | N62: 0 | O62: 0 | P62: 铅钡
A63: 2 | B63: 22.28 | C63: 0 | D63: 0.32 | E63: 3.19 | F63: 1.28 | G63: 4.15 | H63: 0 | I63: 0.83 | J63: 55.46 | K63: 7.04 | L63: 4.24 | M63: 0.88 | N63: 0 | O63: 0 | P63: 铅钡
A64: 2 | B64: 17.11 | C64: 0 | D64: 0 | E64: 0 | F64: 1.11 | G64: 3.65 | H64: 0 | I64: 1.34 | J64: 58.46 | K64: 0 | L64: 14.13 | M64: 1.12 | N64: 0 | O64: 0 | P64: 铅钡
A65: 2 | B65: 49.01 | C65: 2.71 | D65: 0 | E65: 1.13 | F65: 0 | G65: 1.45 | H65: 0 | I65: 0.86 | J65: 32.92 | K65: 7.95 | L65: 0.35 | M65: 0 | N65: 0 | O65: 0 | P65: 铅钡
A66: 2 | B66: 29.15 | C66: 0 | D66: 0 | E66: 1.21 | F66: 0 | G66: 1.85 | H66: 0 | I66: 0.79 | J66: 41.25 | K66: 15.45 | L66: 2.54 | M66: 0 | N66: 0 | O66: 0 | P66: 铅钡
A67: =IF(P67="高钾",1,2) -> 2 | B67: 25.42 | C67: 0 | D67: 0 | E67: 1.31 | F67: 0 | G67: 2.18 | H67: 0 | I67: 1.16 | J67: 45.1 | K67: 17.3 | L67: 0 | M67: 0 | N67: 0 | O67: 0 | P67: 铅钡
A68: 2 | B68: 30.39 | C68: 0 | D68: 0.34 | E68: 3.49 | F68: 0.79 | G68: 3.52 | H68: 0.86 | I68: 3.13 | J68: 39.35 | K68: 7.66 | L68: 8.99 | M68: 0.24 | N68: 0 | O68: 0 | P68: 铅钡

Sheet Sheet4
A1: 类型 | B1: 二氧化硅(SiO2) | C1: 氧化钠(Na2O) | D1: 氧化钾(K2O) | E1: 氧化钙(CaO) | F1: 氧化镁(MgO) | G1: 氧化铝(Al2O3) | H1: 氧化铁(Fe2O3) | I1: 氧化铜(CuO) | J1: 氧化铅(PbO) | K1: 氧化钡(BaO) | L1: 五氧化二磷(P2O5) | M1: 氧化锶(SrO) | N1: 氧化锡(SnO2) | O1: 二氧化硫(SO2)
A2: 100 | B2: 69.33 | C2: 0 | D2: 9.99 | E2: 6.32 | F2: 0.87 | G2: 3.93 | H2: 1.74 | I2: 3.87 | J2: 0 | K2: 0 | L2: 1.17 | M2: 0 | N2: 0 | O2: 0.39
A3: 100 | B3: 87.05 | C3: 0 | D3: 5.19 | E3: 2.01 | F3: 0 | G3: 4.06 | H3: 0 | I3: 0.78 | J3: 0.25 | K3: 0 | L3: 0.66 | M3: 0 | N3: 0 | O3: 0
A4: 100 | B4: 61.71 | C4: 0 | D4: 12.37 | E4: 5.87 | F4: 1.11 | G4: 5.5 | H4: 2.16 | I4: 5.09 | J4: 1.41 | K4: 2.86 | L4: 0.7 | M4: 0.1 | N4: 0 | O4: 0
A5: 100 | B5: 65.88 | C5: 0 | D5: 9.67 | E5: 7.12 | F5: 1.56 | G5: 6.44 | H5: 2.06 | I5: 2.18 | J5: 0 | K5: 0 | L5: 0.79 | M5: 0 | N5: 0 | O5: 0.36
A6: 100 | B6: 61.58 | C6: 0 | D6: 10.95 | E6: 7.35 | F6: 1.77 | G6: 7.5 | H6: 2.62 | I6: 3.27 | J6: 0 | K6: 0 | L6: 0.94 | M6: 0.06 | N6: 0 | O6: 0.47
A7: 100 | B7: 67.65 | C7: 0 | D7: 7.37 | E7: 0 | F7: 1.98 | G7: 11.15 | H7: 2.39 | I7: 2.51 | J7: 0.2 | K7: 1.38 | L7: 4.18 | M7: 0.11 | N7: 0 | O7: 0
A8: 100 | B8: 59.81 | C8: 0 | D8: 7.68 | E8: 5.41 | F8: 1.73 | G8: 10.05 | H8: 6.04 | I8: 2.18 | J8: 0.35 | K8: 0.97 | L8: 4.5 | M8: 0.12 | N8: 0 | O8: 0
A9: 100 | B9: 92.63 | C9: 0 | D9: 0 | E9: 1.07 | F9: 0 | G9: 1.98 | H9: 0.17 | I9: 3.24 | J9: 0 | K9: 0 | L9: 0.61 | M9: 0 | N9: 0 | O9: 0
A10: 100 | B10: 95.02 | C10: 0 | D10: 0.59 | E10: 0.62 | F10: 0 | G10: 1.32 | H10: 0.32 | I10: 1.55 | J10: 0 | K10: 0 | L10: 0.35 | M10: 0 | N10: 0 | O10: 0
A11: 100 | B11: 96.77 | C11: 0 | D11: 0.92 | E11: 0.21 | F11: 0 | G11: 0.81 | H11: 0.26 | I11: 0.84 | J11: 0 | K11: 0 | L11: 0 | M11: 0 | N11: 0 | O11: 0
A12: 100 | B12: 94.29 | C12: 0 | D12: 1.01 | E12: 0.72 | F12: 0 | G12: 1.46 | H12: 0.29 | I12: 1.65 | J12: 0 | K12: 0 | L12: 0.15 | M12: 0 | N12: 0 | O12: 0
A13: 100 | B13: 59.01 | C13: 2.86 | D13: 12.53 | E13: 8.7 | F13: 0 | G13: 6.16 | H13: 2.88 | I13: 4.73 | J13: 0 | K13: 0 | L13: 1.27 | M13: 0 | N13: 0 | O13: 0
A14: 100 | B14: 62.47 | C14: 3.38 | D14: 12.28 | E14: 8.23 | F14: 0.66 | G14: 9.23 | H14: 0.5 | I14: 0.47 | J14: 1.62 | K14: 0 | L14: 0.16 | M14: 0 | N14: 0 | O14: 0
A15: 100 | B15: 65.18 | C15: 2.1 | D15: 14.52 | E15: 8.27 | F15: 0.52 | G15: 6.18 | H15: 0.42 | I15: 1.07 | J15: 0.11 | K15: 0 | L15: 0 | M15: 0.04 | N15: 0 | O15: 0
A16: 100 | B16: 79.46 | C16: 0 | D16: 9.42 | E16: 0 | F16: 1.53 | G16: 3.05 | H16: 0 | I16: 0 | J16: 0 | K16: 0 | L16: 1.36 | M16: 0.07 | N16: 2.36 | O16: 0
A17: 100 | B17: 76.68 | C17: 0 | D17: 0 | E17: 4.71 | F17: 1.22 | G17: 6.19 | H17: 2.37 | I17: 3.28 | J17: 1 | K17: 1.97 | L17: 1.1 | M17: 0 | N17: 0 | O17: 0
A18: 100 | B18: 92.35 | C18: 0 | D18: 0.74 | E18: 1.66 | F18: 0.64 | G18: 3.5 | H18: 0.35 | I18: 0.55 | J18: 0 | K18: 0 | L18: 0.21 | M18: 0 | N18: 0 | O18: 0
A19: 100 | B19: 92.72 | C19: 0 | D19: 0 | E19: 0.94 | F19: 0.54 | G19: 2.51 | H19: 0.2 | I19: 1.54 | J19: 0 | K19: 0 | L19: 0.36 | M19: 0 | N19: 0 | O19: 0

Sheet Sheet5
A1: 类型 | B1: 二氧化硅(SiO2) | C1: 氧化钠(Na2O) | D1: 氧化钾(K2O) | E1: 氧化钙(CaO) | F1: 氧化镁(MgO) | G1: 氧化铝(Al2O3) | H1: 氧化铁(Fe2O3) | I1: 氧化铜(CuO) | J1: 氧化铅(PbO) | K1: 氧化钡(BaO) | L1: 五氧化二磷(P2O5) | M1: 氧化锶(SrO) | N1: 氧化锡(SnO2) | O1: 二氧化硫(SO2)
A2: 2 | B2: 36.28 | C2: 0 | D2: 1.05 | E2: 2.34 | F2: 1.18 | G2: 5.73 | H2: 1.86 | I2: 0.26 | J2: 47.43 | K2: 0 | L2: 3.57 | M2: 0.19 | N2: 0 | O2: 0
A3: 2 | B3: 20.14 | C3: 0 | D3: 0 | E3: 1.48 | F3: 0 | G3: 1.34 | H3: 0 | I3: 10.41 | J3: 28.68 | K3: 31.23 | L3: 3.59 | M3: 0.37 | N3: 0 | O3: 2.58
A4: 2 | B4: 4.61 | C4: 0 | D4: 0 | E4: 3.19 | F4: 0 | G4: 1.11 | H4: 0 | I4: 3.14 | J4: 32.45 | K4: 30.62 | L4: 7.56 | M4: 0.53 | N4: 0 | O4: 15.03
A5: 2 | B5: 33.59 | C5: 0 | D5: 0.21 | E5: 3.51 | F5: 0.71 | G5: 2.69 | H5: 0 | I5: 4.93 | J5: 25.39 | K5: 14.61 | L5: 9.38 | M5: 0.37 | N5: 0 | O5: 0
A6: 2 | B6: 29.64 | C6: 0 | D6: 0 | E6: 2.93 | F6: 0.59 | G6: 3.57 | H6: 1.33 | I6: 3.51 | J6: 42.82 | K6: 5.35 | L6: 8.83 | M6: 0.19 | N6: 0 | O6: 0
A7: 2 | B7: 37.36 | C7: 0 | D7: 0.71 | E7: 0 | F7: 0 | G7: 5.45 | H7: 1.51 | I7: 4.78 | J7: 9.3 | K7: 23.55 | L7: 5.75 | M7: 0 | N7: 0 | O7: 0
A8: 2 | B8: 53.79 | C8: 7.92 | D8: 0 | E8: 0.5 | F8: 0.71 | G8: 1.42 | H8: 0 | I8: 2.99 | J8: 16.98 | K8: 11.86 | L8: 0 | M8: 0.33 | N8: 0 | O8: 0
A9: 2 | B9: 31.94 | C9: 0 | D9: 0 | E9: 0.47 | F9: 0 | G9: 1.59 | H9: 0 | I9: 8.46 | J9: 29.14 | K9: 26.23 | L9: 0.14 | M9: 0.91 | N9: 0 | O9: 0
A10: 2 | B10: 50.61 | C10: 2.31 | D10: 0 | E10: 0.63 | F10: 0 | G10: 1.9 | H10: 1.55 | I10: 1.12 | J10: 31.9 | K10: 6.65 | L10: 0.19 | M10: 0.2 | N10: 0 | O10: 0
A11: 2 | B11: 19.79 | C11: 0 | D11: 0 | E11: 1.44 | F11: 0 | G11: 0.7 | H11: 0 | I11: 10.57 | J11: 29.53 | K11: 32.25 | L11: 3.13 | M11: 0.45 | N11: 0 | O11: 1.96
A12: 2 | B12: 3.72 | C12: 0 | D12: 0.4 | E12: 3.01 | F12: 0 | G12: 1.18 | H12: 0 | I12: 3.6 | J12: 29.92 | K12: 35.45 | L12: 6.04 | M12: 0.62 | N12: 0 | O12: 15.95
A13: 2 | B13: 68.08 | C13: 0 | D13: 0.26 | E13: 1.34 | F13: 1 | G13: 4.7 | H13: 0.41 | I13: 0.33 | J13: 17.14 | K13: 4.04 | L13: 1.04 | M13: 0.12 | N13: 0.23 | O13: 0
A14: 2 | B14: 63.3 | C14: 0.92 | D14: 0.3 | E14: 2.98 | F14: 1.49 | G14: 14.34 | H14: 0.81 | I14: 0.74 | J14: 12.31 | K14: 2.03 | L14: 0.41 | M14: 0.25 | N14: 0 | O14: 0
A15: 2 | B15: 34.34 | C15: 0 | D15: 1.41 | E15: 4.49 | F15: 0.98 | G15: 4.35 | H15: 2.12 | I15: 0 | J15: 39.22 | K15: 10.29 | L15: 0 | M15: 0.35 | N15: 0.4 | O15: 0
A16: 2 | B16: 36.93 | C16: 0 | D16: 0 | E16: 4.24 | F16: 0.51 | G16: 3.86 | H16: 2.74 | I16: 0 | J16: 37.74 | K16: 10.35 | L16: 1.41 | M16: 0.48 | N16: 0.44 | O16: 0
A17: 2 | B17: 65.91 | C17: 0 | D17: 0 | E17: 1.6 | F17: 0.89 | G17: 3.11 | H17: 4.59 | I17: 0.44 | J17: 16.55 | K17: 3.42 | L17: 1.62 | M17: 0.3 | N17: 0 | O17: 0
A18: 2 | B18: 69.71 | C18: 0 | D18: 0.21 | E18: 0.46 | F18: 0 | G18: 2.36 | H18: 1 | I18: 0.11 | J18: 19.76 | K18: 4.88 | L18: 0.17 | M18: 0 | N18: 0 | O18: 0
A19: 2 | B19: 75.51 | C19: 0 | D19: 0.15 | E19: 0.64 | F19: 1 | G19: 2.35 | H19: 0 | I19: 0.47 | J19: 16.16 | K19: 3.55 | L19: 0.13 | M19: 0 | N19: 0 | O19: 0
A20: 2 | B20: 35.78 | C20: 0 | D20: 0.25 | E20: 0.78 | F20: 0 | G20: 1.62 | H20: 0.47 | I20: 1.51 | J20: 46.55 | K20: 10 | L20: 0.34 | M20: 0.22 | N20: 0 | O20: 0
A21: 2 | B21: 65.91 | C21: 0 | D21: 0 | E21: 0.38 | F21: 0 | G21: 1.44 | H21: 0.17 | I21: 0.16 | J21: 22.05 | K21: 5.68 | L21: 0.42 | M21: 0 | N21: 0 | O21: 0
A22: 2 | B22: 39.57 | C22: 2.22 | D22: 0.14 | E22: 0.37 | F22: 0 | G22: 1.6 | H22: 0.32 | I22: 0.68 | J22: 41.61 | K22: 10.83 | L22: 0.07 | M22: 0.22 | N22: 0 | O22: 0
A23: 2 | B23: 60.12 | C23: 0 | D23: 0.23 | E23: 0.89 | F23: 0 | G23: 2.72 | H23: 0 | I23: 3.01 | J23: 17.24 | K23: 10.34 | L23: 1.46 | M23: 0.31 | N23: 0 | O23: 3.66
A24: 2 | B24: 32.93 | C24: 1.38 | D24: 0 | E24: 0.68 | F24: 0 | G24: 2.57 | H24: 0.29 | I24: 0.73 | J24: 49.31 | K24: 9.79 | L24: 0.48 | M24: 0.41 | N24: 0 | O24: 0
A25: 2 | B25: 26.25 | C25: 0 | D25: 0 | E25: 1.11 | F25: 0 | G25: 0.5 | H25: 0 | I25: 0.88 | J25: 61.03 | K25: 7.22 | L25: 1.16 | M25: 0.61 | N25: 0 | O25: 0
A26: 2 | B26: 16.71 | C26: 0 | D26: 0 | E26: 1.87 | F26: 0 | G26: 0.45 | H26: 0.19 | I26: 0 | J26: 70.21 | K26: 6.69 | L26: 1.77 | M26: 0.68 | N26: 0 | O26: 0
A27: 2 | B27: 18.46 | C27: 0 | D27: 0.44 | E27: 4.96 | F27: 2.73 | G27: 3.33 | H27: 1.79 | I27: 0.19 | J27: 44.12 | K27: 9.76 | L27: 7.46 | M27: 0.47 | N27: 0 | O27: 0
A28: 2 | B28: 51.26 | C28: 5.74 | D28: 0.15 | E28: 0.79 | F28: 1.09 | G28: 3.53 | H28: 0 | I28: 2.67 | J28: 21.88 | K28: 10.47 | L28: 0.08 | M28: 0.35 | N28: 0 | O28: 0
A29: 2 | B29: 51.33 | C29: 5.68 | D29: 0.35 | E29: 0 | F29: 1.16 | G29: 5.66 | H29: 0 | I29: 2.72 | J29: 20.12 | K29: 10.88 | L29: 0 | M29: 0 | N29: 0 | O29: 0
A30: 2 | B30: 12.41 | C30: 0 | D30: 0 | E30: 5.24 | F30: 0.89 | G30: 2.25 | H30: 0.76 | I30: 5.35 | J30: 59.85 | K30: 7.29 | L30: 0 | M30: 0.64 | N30: 0 | O30: 0
A31: 2 | B31: 21.7 | C31: 0 | D31: 0 | E31: 6.4 | F31: 0.95 | G31: 3.41 | H31: 1.39 | I31: 1.51 | J31: 44.75 | K31: 3.26 | L31: 12.83 | M31: 0.47 | N31: 0 | O31: 0
A32: 2 | B32: 60.74 | C32: 3.06 | D32: 0.2 | E32: 2.14 | F32: 0 | G32: 12.69 | H32: 0.77 | I32: 0.43 | J32: 13.61 | K32: 5.22 | L32: 0 | M32: 0.26 | N32: 0 | O32: 0
A33: 2 | B33: 61.28 | C33: 2.66 | D33: 0.11 | E33: 0.84 | F33: 0.74 | G33: 5 | H33: 0 | I33: 0.53 | J33: 15.99 | K33: 10.96 | L33: 0 | M33: 0.23 | N33: 0 | O33: 0
A34: 2 | B34: 55.21 | C34: 0 | D34: 0.25 | E34: 0 | F34: 1.67 | G34: 4.79 | H34: 0 | I34: 0.77 | J34: 25.25 | K34: 10.06 | L34: 0.2 | M34: 0.43 | N34: 0 | O34: 0
A35: 2 | B35: 51.54 | C35: 4.66 | D35: 0.29 | E35: 0.87 | F35: 0.61 | G35: 3.06 | H35: 0 | I35: 0.65 | J35: 25.4 | K35: 9.23 | L35: 0.1 | M35: 0.85 | N35: 0 | O35: 0
A36: 2 | B36: 53.33 | C36: 0.8 | D36: 0.32 | E36: 2.82 | F36: 1.54 | G36: 13.65 | H36: 1.03 | I36: 0 | J36: 15.71 | K36: 7.31 | L36: 1.1 | M36: 0.25 | N36: 1.31 | O36: 0
A37: 2 | B37: 28.79 | C37: 0 | D37: 0 | E37: 4.58 | F37: 1.47 | G37: 5.38 | H37: 2.74 | I37: 0.7 | J37: 34.18 | K37: 6.1 | L37: 11.1 | M37: 0.46 | N37: 0 | O37: 0
A38: 2 | B38: 54.61 | C38: 0 | D38: 0.3 | E38: 2.08 | F38: 1.2 | G38: 6.5 | H38: 1.27 | I38: 0.45 | J38: 23.02 | K38: 4.19 | L38: 4.32 | M38: 0.3 | N38: 0 | O38: 0
A39: 2 | B39: 17.98 | C39: 0 | D39: 0 | E39: 3.19 | F39: 0.47 | G39: 1.87 | H39: 0.33 | I39: 1.13 | J39: 44 | K39: 14.2 | L39: 6.34 | M39: 0.66 | N39: 0 | O39: 0
A40: 2 | B40: 45.02 | C40: 0 | D40: 0 | E40: 3.12 | F40: 0.54 | G40: 4.16 | H40: 0 | I40: 0.7 | J40: 30.61 | K40: 6.22 | L40: 6.34 | M40: 0.23 | N40: 0 | O40: 0
A41: 2 | B41: 24.61 | C41: 0 | D41: 0 | E41: 3.58 | F41: 1.19 | G41: 5.25 | H41: 1.19 | I41: 1.37 | J41: 40.24 | K41: 8.94 | L41: 8.1 | M41: 0.39 | N41: 0.47 | O41: 0
A42: 2 | B42: 21.35 | C42: 0 | D42: 0 | E42: 5.13 | F42: 1.45 | G42: 2.51 | H42: 0.42 | I42: 0.75 | J42: 51.34 | K42: 0 | L42: 8.75 | M42: 0 | N42: 0 | O42: 0
A43: 2 | B43: 25.74 | C43: 1.22 | D43: 0 | E43: 2.27 | F43: 0.55 | G43: 1.16 | H43: 0.23 | I43: 0.7 | J43: 47.42 | K43: 8.64 | L43: 5.71 | M43: 0.44 | N43: 0 | O43: 0
A44: 2 | B44: 63.66 | C44: 3.04 | D44: 0.11 | E44: 0.78 | F44: 1.14 | G44: 6.06 | H44: 0 | I44: 0.54 | J44: 13.66 | K44: 8.99 | L44: 0 | M44: 0.27 | N44: 0 | O44: 0
A45: 2 | B45: 22.28 | C45: 0 | D45: 0.32 | E45: 3.19 | F45: 1.28 | G45: 4.15 | H45: 0 | I45: 0.83 | J45: 55.46 | K45: 7.04 | L45: 4.24 | M45: 0.88 | N45: 0 | O45: 0
A46: 2 | B46: 17.11 | C46: 0 | D46: 0 | E46: 0 | F46: 1.11 | G46: 3.65 | H46: 0 | I46: 1.34 | J46: 58.46 | K46: 0 | L46: 14.13 | M46: 1.12 | N46: 0 | O46: 0
A47: 2 | B47: 49.01 | C47: 2.71 | D47: 0 | E47: 1.13 | F47: 0 | G47: 1.45 | H47: 0 | I47: 0.86 | J47: 32.92 | K47: 7.95 | L47: 0.35 | M47: 0 | N47: 0 | O47: 0
A48: 2 | B48: 29.15 | C48: 0 | D48: 0 | E48: 1.21 | F48: 0 | G48: 1.85 | H48: 0 | I48: 0.79 | J48: 41.25 | K48: 15.45 | L48: 2.54 | M48: 0 | N48: 0 | O48: 0
A49: 2 | B49: 25.42 | C49: 0 | D49: 0 | E49: 1.31 | F49: 0 | G49: 2.18 | H49: 0 | I49: 1.16 | J49: 45.1 | K49: 17.3 | L49: 0 | M49: 0 | N49: 0 | O49: 0
A50: 2 | B50: 30.39 | C50: 0 | D50: 0.34 | E50: 3.49 | F50: 0.79 | G50: 3.52 | H50: 0.86 | I50: 3.13 | J50: 39.35 | K50: 7.66 | L50: 8.99 | M50: 0.24 | N50: 0 | O50: 0

Sheet Sheet2
A1: 文物采样点 | B1: 二氧化硅(SiO2) | C1: 氧化钠(Na2O) | D1: 氧化钾(K2O) | E1: 氧化钙(CaO) | F1: 氧化镁(MgO) | G1: 氧化铝(Al2O3) | H1: 氧化铁(Fe2O3) | I1: 氧化铜(CuO) | J1: 氧化铅(PbO) | K1: 氧化钡(BaO) | L1: 五氧化二磷(P2O5) | M1: 氧化锶(SrO) | N1: 氧化锡(SnO2) | O1: 二氧化硫(SO2) | P1: 百分比 | Q1: 文物编号 | R1: 纹饰 | S1: 类型 | T1: 颜色 | U1: 表面风化
A2: 07 | B2: 92.63 | C2: 0 | D2: 0 | E2: 1.07 | F2: 0 | G2: 1.98 | H2: 0.17 | I2: 3.24 | J2: 0 | K2: 0 | L2: 0.61 | M2: 0 | N2: 0 | O2: 0 | P2: 99.7 | Q2: 07 | R2: B | S2: 高钾 | T2: 蓝绿 | U2: 风化
A3: 09 | B3: 95.02 | C3: 0 | D3: 0.59 | E3: 0.62 | F3: 0 | G3: 1.32 | H3: 0.32 | I3: 1.55 | J3: 0 | K3: 0 | L3: 0.35 | M3: 0 | N3: 0 | O3: 0 | P3: 99.77 | Q3: 09 | R3: B | S3: 高钾 | T3: 蓝绿 | U3: 风化
A4: 10 | B4: 96.77 | C4: 0 | D4: 0.92 | E4: 0.21 | F4: 0 | G4: 0.81 | H4: 0.26 | I4: 0.84 | J4: 0 | K4: 0 | L4: 0 | M4: 0 | N4: 0 | O4: 0 | P4: 99.81 | Q4: 10 | R4: B | S4: 高钾 | T4: 蓝绿 | U4: 风化
A5: 12 | B5: 94.29 | C5: 0 | D5: 1.01 | E5: 0.72 | F5: 0 | G5: 1.46 | H5: 0.29 | I5: 1.65 | J5: 0 | K5: 0 | L5: 0.15 | M5: 0 | N5: 0 | O5: 0 | P5: 99.57 | Q5: 12 | R5: B | S5: 高钾 | T5: 蓝绿 | U5: 风化
A6: 22 | B6: 92.35 | C6: 0 | D6: 0.74 | E6: 1.66 | F6: 0.64 | G6: 3.5 | H6: 0.35 | I6: 0.55 | J6: 0 | K6: 0 | L6: 0.21 | M6: 0 | N6: 0 | O6: 0 | P6: 100 | Q6: 22 | R6: B | S6: 高钾 | T6: 蓝绿 | U6: 风化
A7: 27 | B7: 92.72 | C7: 0 | D7: 0 | E7: 0.94 | F7: 0.54 | G7: 2.51 | H7: 0.2 | I7: 1.54 | J7: 0 | K7: 0 | L7: 0.36 | M7: 0 | N7: 0 | O7: 0 | P7: 98.81 | Q7: 27 | R7: B | S7: 高钾 | T7: 蓝绿 | U7: 风化
B8: =AVERAGE(B2:B7) -> 93.96333333 | C8: =AVERAGE(C2:C7) -> 0 | D8: 0.5433333333 | E8: 0.87 | F8: 0.1966666667 | G8: 1.93 | H8: 0.265 | I8: 1.561666667 | J8: 0 | K8: 0 | L8: 0.28 | M8: 0 | N8: 0 | O8: 0 | P8: =(B8-B9)^2 -> 880.5067111 | Q8: =(C8-C9)^2 -> 1.44 | R8: 0.03004444444 | S8: 0.5929 | T8: 4.593877778 | U8: 117.0724 | V8: 0.297025 | W8: 0.3864694444 | X8: 149.5729 | Y8: 4.6656 | Z8: 0.0081 | AA8: 0.0441 | AB8: 0.2401 | AC8: 0
B9: 64.29 | C9: 1.2 | D9: 0.37 | E9: 1.64 | F9: 2.34 | G9: 12.75 | H9: 0.81 | I9: 0.94 | J9: 12.23 | K9: 2.16 | L9: 0.19 | M9: 0.21 | N9: 0.49 | O9: 0 | P9: =SUM(P8:AC8) -> 1159.450228
A11: 文物采样点 | B11: 二氧化硅(SiO2) | C11: 氧化钠(Na2O) | D11: 氧化钾(K2O) | E11: 氧化钙(CaO) | F11: 氧化镁(MgO) | G11: 氧化铝(Al2O3) | H11: 氧化铁(Fe2O3) | I11: 氧化铜(CuO) | J11: 氧化铅(PbO) | K11: 氧化钡(BaO) | L11: 五氧化二磷(P2O5) | M11: 氧化锶(SrO) | N11: 氧化锡(SnO2) | O11: 二氧化硫(SO2) | P11: 百分比 | Q11: 文物编号 | R11: 纹饰 | S11: 类型 | T11: 颜色 | U11: 表面风化
A12: 02 | B12: 36.28 | C12: 0 | D12: 1.05 | E12: 2.34 | F12: 1.18 | G12: 5.73 | H12: 1.86 | I12: 0.26 | J12: 47.43 | K12: 0 | L12: 3.57 | M12: 0.19 | N12: 0 | O12: 0 | P12: 99.89 | Q12: 02 | R12: A | S12: 铅钡 | T12: 浅蓝 | U12: 风化
A13: 08 | B13: 20.14 | C13: 0 | D13: 0 | E13: 1.48 | F13: 0 | G13: 1.34 | H13: 0 | I13: 10.41 | J13: 28.68 | K13: 31.23 | L13: 3.59 | M13: 0.37 | N13: 0 | O13: 2.58 | P13: 99.82 | Q13: 08 | R13: C | S13: 铅钡 | T13: 紫 | U13: 风化
A14: 08严重风化点 | B14: 4.61 | C14: 0 | D14: 0 | E14: 3.19 | F14: 0 | G14: 1.11 | H14: 0 | I14: 3.14 | J14: 32.45 | K14: 30.62 | L14: 7.56 | M14: 0.53 | N14: 0 | O14: 15.03 | P14: 98.24 | Q14: 08 | R14: C | S14: 铅钡 | T14: 紫 | U14: 风化
A15: 11 | B15: 33.59 | C15: 0 | D15: 0.21 | E15: 3.51 | F15: 0.71 | G15: 2.69 | H15: 0 | I15: 4.93 | J15: 25.39 | K15: 14.61 | L15: 9.38 | M15: 0.37 | N15: 0 | O15: 0 | P15: 95.39 | Q15: 11 | R15: C | S15: 铅钡 | T15: 浅蓝 | U15: 风化
A16: 19 | B16: 29.64 | C16: 0 | D16: 0 | E16: 2.93 | F16: 0.59 | G16: 3.57 | H16: 1.33 | I16: 3.51 | J16: 42.82 | K16: 5.35 | L16: 8.83 | M16: 0.19 | N16: 0 | O16: 0 | P16: 98.76 | Q16: 19 | R16: A | S16: 铅钡 | T16: 0 | U16: 风化
A17: 23未风化点 | B17: 53.79 | C17: 7.92 | D17: 0 | E17: 0.5 | F17: 0.71 | G17: 1.42 | H17: 0 | I17: 2.99 | J17: 16.98 | K17: 11.86 | L17: 0 | M17: 0.33 | N17: 0 | O17: 0 | P17: 96.5 | Q17: 23 | R17: A | S17: 铅钡 | T17: 蓝绿 | U17: 风化
A18: 25未风化点 | B18: 50.61 | C18: 2.31 | D18: 0 | E18: 0.63 | F18: 0 | G18: 1.9 | H18: 1.55 | I18: 1.12 | J18: 31.9 | K18: 6.65 | L18: 0.19 | M18: 0.2 | N18: 0 | O18: 0 | P18: 97.06 | Q18: 25 | R18: C | S18: 铅钡 | T18: 浅蓝 | U18: 风化
A19: 26 | B19: 19.79 | C19: 0 | D19: 0 | E19: 1.44 | F19: 0 | G19: 0.7 | H19: 0 | I19: 10.57 | J19: 29.53 | K19: 32.25 | L19: 3.13 | M19: 0.45 | N19: 0 | O19: 1.96 | P19: 99.82 | Q19: 26 | R19: C | S19: 铅钡 | T19: 紫 | U19: 风化
A20: 26严重风化点 | B20: 3.72 | C20: 0 | D20: 0.4 | E20: 3.01 | F20: 0 | G20: 1.18 | H20: 0 | I20: 3.6 | J20: 29.92 | K20: 35.45 | L20: 6.04 | M20: 0.62 | N20: 0 | O20: 15.95 | P20: 99.89 | Q20: 26 | R20: C | S20: 铅钡 | T20: 紫 | U20: 风化
A21: 28未风化点 | B21: 68.08 | C21: 0 | D21: 0.26 | E21: 1.34 | F21: 1 | G21: 4.7 | H21: 0.41 | I21: 0.33 | J21: 17.14 | K21: 4.04 | L21: 1.04 | M21: 0.12 | N21: 0.23 | O21: 0 | P21: 98.69 | Q21: 28 | R21: A | S21: 铅钡 | T21: 浅蓝 | U21: 风化
A22: 29未风化点 | B22: 63.3 | C22: 0.92 | D22: 0.3 | E22: 2.98 | F22: 1.49 | G22: 14.34 | H22: 0.81 | I22: 0.74 | J22: 12.31 | K22: 2.03 | L22: 0.41 | M22: 0.25 | N22: 0 | O22: 0 | P22: 99.88 | Q22: 29 | R22: A | S22: 铅钡 | T22: 浅蓝 | U22: 风化
A23: 34 | B23: 35.78 | C23: 0 | D23: 0.25 | E23: 0.78 | F23: 0 | G23: 1.62 | H23: 0.47 | I23: 1.51 | J23: 46.55 | K23: 10 | L23: 0.34 | M23: 0.22 | N23: 0 | O23: 0 | P23: 97.52 | Q23: 34 | R23: C | S23: 铅钡 | T23: 深绿 | U23: 风化
A24: 36 | B24: 39.57 | C24: 2.22 | D24: 0.14 | E24: 0.37 | F24: 0 | G24: 1.6 | H24: 0.32 | I24: 0.68 | J24: 41.61 | K24: 10.83 | L24: 0.07 | M24: 0.22 | N24: 0 | O24: 0 | P24: 97.63 | Q24: 36 | R24: C | S24: 铅钡 | T24: 深绿 | U24: 风化
A25: 38 | B25: 32.93 | C25: 1.38 | D25: 0 | E25: 0.68 | F25: 0 | G25: 2.57 | H25: 0.29 | I25: 0.73 | J25: 49.31 | K25: 9.79 | L25: 0.48 | M25: 0.41 | N25: 0 | O25: 0 | P25: 98.57 | Q25: 38 | R25: C | S25: 铅钡 | T25: 深绿 | U25: 风化
A26: 39 | B26: 26.25 | C26: 0 | D26: 0 | E26: 1.11 | F26: 0 | G26: 0.5 | H26: 0 | I26: 0.88 | J26: 61.03 | K26: 7.22 | L26: 1.16 | M26: 0.61 | N26: 0 | O26: 0 | P26: 98.76 | Q26: 39 | R26: C | S26: 铅钡 | T26: 深绿 | U26: 风化
A27: 40 | B27: 16.71 | C27: 0 | D27: 0 | E27: 1.87 | F27: 0 | G27: 0.45 | H27: 0.19 | I27: 0 | J27: 70.21 | K27: 6.69 | L27: 1.77 | M27: 0.68 | N27: 0 | O27: 0 | P27: 98.57 | Q27: 40 | R27: C | S27: 铅钡 | T27: 0 | U27: 风化
A28: 41 | B28: 18.46 | C28: 0 | D28: 0.44 | E28: 4.96 | F28: 2.73 | G28: 3.33 | H28: 1.79 | I28: 0.19 | J28: 44.12 | K28: 9.76 | L28: 7.46 | M28: 0.47 | N28: 0 | O28: 0 | P28: 93.71 | Q28: 41 | R28: C | S28: 铅钡 | T28: 浅绿 | U28: 风化
A29: 42未风化点1 | B29: 51.26 | C29: 5.74 | D29: 0.15 | E29: 0.79 | F29: 1.09 | G29: 3.53 | H29: 0 | I29: 2.67 | J29: 21.88 | K29: 10.47 | L29: 0.08 | M29: 0.35 | N29: 0 | O29: 0 | P29: 98.01 | Q29: 42 | R29: A | S29: 铅钡 | T29: 浅蓝 | U29: 风化
A30: 42未风化点2 | B30: 51.33 | C30: 5.68 | D30: 0.35 | E30: 0 | F30: 1.16 | G30: 5.66 | H30: 0 | I30: 2.72 | J30: 20.12 | K30: 10.88 | L30: 0 | M30: 0 | N30: 0 | O30: 0 | P30: 97.9 | Q30: 42 | R30: A | S30: 铅钡 | T30: 浅蓝 | U30: 风化
A31: 43部位1 | B31: 12.41 | C31: 0 | D31: 0 | E31: 5.24 | F31: 0.89 | G31: 2.25 | H31: 0.76 | I31: 5.35 | J31: 59.85 | K31: 7.29 | L31: 0 | M31: 0.64 | N31: 0 | O31: 0 | P31: 94.68 | Q31: 43 | R31: C | S31: 铅钡 | T31: 浅蓝 | U31: 风化
A32: 43部位2 | B32: 21.7 | C32: 0 | D32: 0 | E32: 6.4 | F32: 0.95 | G32: 3.41 | H32: 1.39 | I32: 1.51 | J32: 44.75 | K32: 3.26 | L32: 12.83 | M32: 0.47 | N32: 0 | O32: 0 | P32: 96.67 | Q32: 43 | R32: C | S32: 铅钡 | T32: 浅蓝 | U32: 风化
A33: 44未风化点 | B33: 60.74 | C33: 3.06 | D33: 0.2 | E33: 2.14 | F33: 0 | G33: 12.69 | H33: 0.77 | I33: 0.43 | J33: 13.61 | K33: 5.22 | L33: 0 | M33: 0.26 | N33: 0 | O33: 0 | P33: 99.12 | Q33: 44 | R33: A | S33: 铅钡 | T33: 浅蓝 | U33: 风化
A34: 48 | B34: 53.33 | C34: 0.8 | D34: 0.32 | E34: 2.82 | F34: 1.54 | G34: 13.65 | H34: 1.03 | I34: 0 | J34: 15.71 | K34: 7.31 | L34: 1.1 | M34: 0.25 | N34: 1.31 | O34: 0 | P34: 99.17 | Q34: 48 | R34: A | S34: 铅钡 | T34: 0 | U34: 风化
A35: 49 | B35: 28.79 | C35: 0 | D35: 0 | E35: 4.58 | F35: 1.47 | G35: 5.38 | H35: 2.74 | I35: 0.7 | J35: 34.18 | K35: 6.1 | L35: 11.1 | M35: 0.46 | N35: 0 | O35: 0 | P35: 95.5 | Q35: 49 | R35: A | S35: 铅钡 | T35: 黑 | U35: 风化
A36: 49未风化点 | B36: 54.61 | C36: 0 | D36: 0.3 | E36: 2.08 | F36: 1.2 | G36: 6.5 | H36: 1.27 | I36: 0.45 | J36: 23.02 | K36: 4.19 | L36: 4.32 | M36: 0.3 | N36: 0 | O36: 0 | P36: 98.24 | Q36: 49 | R36: A | S36: 铅钡 | T36: 黑 | U36: 风化
A37: 50 | B37: 17.98 | C37: 0 | D37: 0 | E37: 3.19 | F37: 0.47 | G37: 1.87 | H37: 0.33 | I37: 1.13 | J37: 44 | K37: 14.2 | L37: 6.34 | M37: 0.66 | N37: 0 | O37: 0 | P37: 90.17 | Q37: 50 | R37: A | S37: 铅钡 | T37: 黑 | U37: 风化
A38: 50未风化点 | B38: 45.02 | C38: 0 | D38: 0 | E38: 3.12 | F38: 0.54 | G38: 4.16 | H38: 0 | I38: 0.7 | J38: 30.61 | K38: 6.22 | L38: 6.34 | M38: 0.23 | N38: 0 | O38: 0 | P38: 96.94 | Q38: 50 | R38: A | S38: 铅钡 | T38: 黑 | U38: 风化
A39: 51部位1 | B39: 24.61 | C39: 0 | D39: 0 | E39: 3.58 | F39: 1.19 | G39: 5.25 | H39: 1.19 | I39: 1.37 | J39: 40.24 | K39: 8.94 | L39: 8.1 | M39: 0.39 | N39: 0.47 | O39: 0 | P39: 95.33 | Q39: 51 | R39: C | S39: 铅钡 | T39: 浅蓝 | U39: 风化
A40: 51部位2 | B40: 21.35 | C40: 0 | D40: 0 | E40: 5.13 | F40: 1.45 | G40: 2.51 | H40: 0.42 | I40: 0.75 | J40: 51.34 | K40: 0 | L40: 8.75 | M40: 0 | N40: 0 | O40: 0 | P40: 91.7 | Q40: 51 | R40: C | S40: 铅钡 | T40: 浅蓝 | U40: 风化
A41: 52 | B41: 25.74 | C41: 1.22 | D41: 0 | E41: 2.27 | F41: 0.55 | G41: 1.16 | H41: 0.23 | I41: 0.7 | J41: 47.42 | K41: 8.64 | L41: 5.71 | M41: 0.44 | N41: 0 | O41: 0 | P41: 94.08 | Q41: 52 | R41: C | S41: 铅钡 | T41: 浅蓝 | U41: 风化
A42: 53未风化点 | B42: 63.66 | C42: 3.04 | D42: 0.11 | E42: 0.78 | F42: 1.14 | G42: 6.06 | H42: 0 | I42: 0.54 | J42: 13.66 | K42: 8.99 | L42: 0 | M42: 0.27 | N42: 0 | O42: 0 | P42: 98.25 | Q42: 53 | R42: A | S42: 铅钡 | T42: 浅蓝 | U42: 风化
A43: 54 | B43: 22.28 | C43: 0 | D43: 0.32 | E43: 3.19 | F43: 1.28 | G43: 4.15 | H43: 0 | I43: 0.83 | J43: 55.46 | K43: 7.04 | L43: 4.24 | M43: 0.88 | N43: 0 | O43: 0 | P43: 99.67 | Q43: 54 | R43: C | S43: 铅钡 | T43: 浅蓝 | U43: 风化
A44: 54严重风化点 | B44: 17.11 | C44: 0 | D44: 0 | E44: 0 | F44: 1.11 | G44: 3.65 | H44: 0 | I44: 1.34 | J44: 58.46 | K44: 0 | L44: 14.13 | M44: 1.12 | N44: 0 | O44: 0 | P44: 96.92 | Q44: 54 | R44: C | S44: 铅钡 | T44: 浅蓝 | U44: 风化
A45: 56 | B45: 29.15 | C45: 0 | D45: 0 | E45: 1.21 | F45: 0 | G45: 1.85 | H45: 0 | I45: 0.79 | J45: 41.25 | K45: 15.45 | L45: 2.54 | M45: 0 | N45: 0 | O45: 0 | P45: 92.24 | Q45: 56 | R45: C | S45: 铅钡 | T45: 蓝绿 | U45: 风化
A46: 57 | B46: 25.42 | C46: 0 | D46: 0 | E46: 1.31 | F46: 0 | G46: 2.18 | H46: 0 | I46: 1.16 | J46: 45.1 | K46: 17.3 | L46: 0 | M46: 0 | N46: 0 | O46: 0 | P46: 92.47 | Q46: 57 | R46: C | S46: 铅钡 | T46: 蓝绿 | U46: 风化
A47: 58 | B47: 30.39 | C47: 0 | D47: 0.34 | E47: 3.49 | F47: 0.79 | G47: 3.52 | H47: 0.86 | I47: 3.13 | J47: 39.35 | K47: 7.66 | L47: 8.99 | M47: 0.24 | N47: 0 | O47: 0 | P47: 98.76 | Q47: 58 | R47: C | S47: 铅钡 | T47: 0 | U47: 风化
B48: =AVERAGE(B12:B47) -> 33.61472222 | C48: =AVERAGE(C12:C47) -> 0.9525 | D48: 0.1427777778 | E48: 2.345555556 | F48: 0.7008333333 | G48: 3.838333333 | H48: 0.5558333333 | I48: 1.996111111 | J48: 36.87194444 | K48: 10.48722222 | L48: 4.155277778 | M48: 0.3663888889 | N48: 0.05583333333 | O48: 0.9866666667 | P48: =(B48-B49)^2 -> 940.9726667 | Q48: =(C48-C49)^2 -> 0.06125625 | R48: 0.05162993827 | S48: 0.497808642 | T48: 2.686867361 | U48: 79.41780278 | V48: 0.06460069444 | W48: 1.115370679 | X48: 607.225426 | Y48: 69.34262994 | Z48: 15.72342785 | AA48: 0.02445748457 | AB48: 0.1885006944 | AC48: 0.9735111111
B49: 64.29 | C49: 1.2 | D49: 0.37 | E49: 1.64 | F49: 2.34 | G49: 12.75 | H49: 0.81 | I49: 0.94 | J49: 12.23 | K49: 2.16 | L49: 0.19 | M49: 0.21 | N49: 0.49 | O49: 0 | P49: =SUM(P48:AC48) -> 1718.345956
A52: 文物采样点 | B52: 二氧化硅(SiO2) | C52: 氧化钠(Na2O) | D52: 氧化钾(K2O) | E52: 氧化钙(CaO) | F52: 氧化镁(MgO) | G52: 氧化铝(Al2O3) | H52: 氧化铁(Fe2O3) | I52: 氧化铜(CuO) | J52: 氧化铅(PbO) | K52: 氧化钡(BaO) | L52: 五氧化二磷(P2O5) | M52: 氧化锶(SrO) | N52: 氧化锡(SnO2) | O52: 二氧化硫(SO2) | P52: 百分比 | Q52: 文物编号 | R52: 纹饰 | S52: 类型 | T52: 颜色 | U52: 表面风化
A53: 01 | B53: 69.33 | C53: 0 | D53: 9.99 | E53: 6.32 | F53: 0.87 | G53: 3.93 | H53: 1.74 | I53: 3.87 | J53: 0 | K53: 0 | L53: 1.17 | M53: 0 | N53: 0 | O53: 0.39 | P53: 97.61 | Q53: 01 | R53: C | S53: 高钾 | T53: 蓝绿 | U53: 无风化
A54: 03部位1 | B54: 87.05 | C54: 0 | D54: 5.19 | E54: 2.01 | F54: 0 | G54: 4.06 | H54: 0 | I54: 0.78 | J54: 0.25 | K54: 0 | L54: 0.66 | M54: 0 | N54: 0 | O54: 0 | P54: 100 | Q54: 03 | R54: A | S54: 高钾 | T54: 蓝绿 | U54: 无风化
A55: 03部位2 | B55: 61.71 | C55: 0 | D55: 12.37 | E55: 5.87 | F55: 1.11 | G55: 5.5 | H55: 2.16 | I55: 5.09 | J55: 1.41 | K55: 2.86 | L55: 0.7 | M55: 0.1 | N55: 0 | O55: 0 | P55: 98.88 | Q55: 03 | R55: A | S55: 高钾 | T55: 蓝绿 | U55: 无风化
A56: 04 | B56: 65.88 | C56: 0 | D56: 9.67 | E56: 7.12 | F56: 1.56 | G56: 6.44 | H56: 2.06 | I56: 2.18 | J56: 0 | K56: 0 | L56: 0.79 | M56: 0 | N56: 0 | O56: 0.36 | P56: 96.06 | Q56: 04 | R56: A | S56: 高钾 | T56: 蓝绿 | U56: 无风化
A57: 05 | B57: 61.58 | C57: 0 | D57: 10.95 | E57: 7.35 | F57: 1.77 | G57: 7.5 | H57: 2.62 | I57: 3.27 | J57: 0 | K57: 0 | L57: 0.94 | M57: 0.06 | N57: 0 | O57: 0.47 | P57: 96.51 | Q57: 05 | R57: A | S57: 高钾 | T57: 蓝绿 | U57: 无风化
A58: 06部位1 | B58: 67.65 | C58: 0 | D58: 7.37 | E58: 0 | F58: 1.98 | G58: 11.15 | H58: 2.39 | I58: 2.51 | J58: 0.2 | K58: 1.38 | L58: 4.18 | M58: 0.11 | N58: 0 | O58: 0 | P58: 98.92 | Q58: 06 | R58: A | S58: 高钾 | T58: 蓝绿 | U58: 无风化
A59: 06部位2 | B59: 59.81 | C59: 0 | D59: 7.68 | E59: 5.41 | F59: 1.73 | G59: 10.05 | H59: 6.04 | I59: 2.18 | J59: 0.35 | K59: 0.97 | L59: 4.5 | M59: 0.12 | N59: 0 | O59: 0 | P59: 98.84 | Q59: 06 | R59: A | S59: 高钾 | T59: 蓝绿 | U59: 无风化
A60: 13 | B60: 59.01 | C60: 2.86 | D60: 12.53 | E60: 8.7 | F60: 0 | G60: 6.16 | H60: 2.88 | I60: 4.73 | J60: 0 | K60: 0 | L60: 1.27 | M60: 0 | N60: 0 | O60: 0 | P60: 98.14 | Q60: 13 | R60: C | S60: 高钾 | T60: 浅蓝 | U60: 无风化
A61: 14 | B61: 62.47 | C61: 3.38 | D61: 12.28 | E61: 8.23 | F61: 0.66 | G61: 9.23 | H61: 0.5 | I61: 0.47 | J61: 1.62 | K61: 0 | L61: 0.16 | M61: 0 | N61: 0 | O61: 0 | P61: 99 | Q61: 14 | R61: C | S61: 高钾 | T61: 深绿 | U61: 无风化
A62: 16 | B62: 65.18 | C62: 2.1 | D62: 14.52 | E62: 8.27 | F62: 0.52 | G62: 6.18 | H62: 0.42 | I62: 1.07 | J62: 0.11 | K62: 0 | L62: 0 | M62: 0.04 | N62: 0 | O62: 0 | P62: 98.41 | Q62: 16 | R62: C | S62: 高钾 | T62: 浅蓝 | U62: 无风化
A63: 18 | B63: 79.46 | C63: 0 | D63: 9.42 | E63: 0 | F63: 1.53 | G63: 3.05 | H63: 0 | I63: 0 | J63: 0 | K63: 0 | L63: 1.36 | M63: 0.07 | N63: 2.36 | O63: 0 | P63: 97.25 | Q63: 18 | R63: A | S63: 高钾 | T63: 深蓝 | U63: 无风化
A64: 21 | B64: 76.68 | C64: 0 | D64: 0 | E64: 4.71 | F64: 1.22 | G64: 6.19 | H64: 2.37 | I64: 3.28 | J64: 1 | K64: 1.97 | L64: 1.1 | M64: 0 | N64: 0 | O64: 0 | P64: 98.52 | Q64: 21 | R64: A | S64: 高钾 | T64: 蓝绿 | U64: 无风化
B65: =AVERAGE(B53:B64) -> 67.98416667 | C65: =AVERAGE(C53:C64) -> 0.695 | D65: 9.330833333 | E65: 5.3325 | F65: 1.079166667 | G65: 6.62 | H65: 1.931666667 | I65: 2.4525 | J65: 0.4116666667 | K65: 0.5983333333 | L65: 1.4025 | M65: 0.04166666667 | N65: 0.1966666667 | O65: 0.1016666667 | P65: =ABS(B65-B66) -> 3.694166667 | Q65: =ABS(C65-C66) -> 0.505 | R65: 8.960833333 | S65: 3.6925 | T65: 1.260833333 | U65: 6.13 | V65: 1.121666667 | W65: 1.5125 | X65: 11.81833333 | Y65: 1.561666667 | Z65: 1.2125 | AA65: 0.1683333333 | AB65: 0.2933333333 | AC65: 0.1016666667
B66: 64.29 | C66: 1.2 | D66: 0.37 | E66: 1.64 | F66: 2.34 | G66: 12.75 | H66: 0.81 | I66: 0.94 | J66: 12.23 | K66: 2.16 | L66: 0.19 | M66: 0.21 | N66: 0.49 | O66: 0 | P66: =SUM(P65:AC65) -> 42.03333333
A70: 文物采样点 | B70: 二氧化硅(SiO2) | C70: 氧化钠(Na2O) | D70: 氧化钾(K2O) | E70: 氧化钙(CaO) | F70: 氧化镁(MgO) | G70: 氧化铝(Al2O3) | H70: 氧化铁(Fe2O3) | I70: 氧化铜(CuO) | J70: 氧化铅(PbO) | K70: 氧化钡(BaO) | L70: 五氧化二磷(P2O5) | M70: 氧化锶(SrO) | N70: 氧化锡(SnO2) | O70: 二氧化硫(SO2) | P70: 百分比 | Q70: 文物编号 | R70: 纹饰 | S70: 类型 | T70: 颜色 | U70: 表面风化
A71: 20 | B71: 37.36 | C71: 0 | D71: 0.71 | E71: 0 | F71: 0 | G71: 5.45 | H71: 1.51 | I71: 4.78 | J71: 9.3 | K71: 23.55 | L71: 5.75 | M71: 0 | N71: 0 | O71: 0 | P71: 88.41 | Q71: 20 | R71: A | S71: 铅钡 | T71: 浅蓝 | U71: 无风化
A72: 24 | B72: 31.94 | C72: 0 | D72: 0 | E72: 0.47 | F72: 0 | G72: 1.59 | H72: 0 | I72: 8.46 | J72: 29.14 | K72: 26.23 | L72: 0.14 | M72: 0.91 | N72: 0 | O72: 0 | P72: 98.88 | Q72: 24 | R72: C | S72: 铅钡 | T72: 紫 | U72: 无风化
A73: 30部位1 | B73: 34.34 | C73: 0 | D73: 1.41 | E73: 4.49 | F73: 0.98 | G73: 4.35 | H73: 2.12 | I73: 0 | J73: 39.22 | K73: 10.29 | L73: 0 | M73: 0.35 | N73: 0.4 | O73: 0 | P73: 97.95 | Q73: 30 | R73: A | S73: 铅钡 | T73: 深蓝 | U73: 无风化
A74: 30部位2 | B74: 36.93 | C74: 0 | D74: 0 | E74: 4.24 | F74: 0.51 | G74: 3.86 | H74: 2.74 | I74: 0 | J74: 37.74 | K74: 10.35 | L74: 1.41 | M74: 0.48 | N74: 0.44 | O74: 0 | P74: 98.7 | Q74: 30 | R74: A | S74: 铅钡 | T74: 深蓝 | U74: 无风化
A75: 31 | B75: 65.91 | C75: 0 | D75: 0 | E75: 1.6 | F75: 0.89 | G75: 3.11 | H75: 4.59 | I75: 0.44 | J75: 16.55 | K75: 3.42 | L75: 1.62 | M75: 0.3 | N75: 0 | O75: 0 | P75: 98.43 | Q75: 31 | R75: C | S75: 铅钡 | T75: 紫 | U75: 无风化
A76: 32 | B76: 69.71 | C76: 0 | D76: 0.21 | E76: 0.46 | F76: 0 | G76: 2.36 | H76: 1 | I76: 0.11 | J76: 19.76 | K76: 4.88 | L76: 0.17 | M76: 0 | N76: 0 | O76: 0 | P76: 98.66 | Q76: 32 | R76: C | S76: 铅钡 | T76: 浅绿 | U76: 无风化
A77: 33 | B77: 75.51 | C77: 0 | D77: 0.15 | E77: 0.64 | F77: 1 | G77: 2.35 | H77: 0 | I77: 0.47 | J77: 16.16 | K77: 3.55 | L77: 0.13 | M77: 0 | N77: 0 | O77: 0 | P77: 99.96 | Q77: 33 | R77: C | S77: 铅钡 | T77: 深绿 | U77: 无风化
A78: 35 | B78: 65.91 | C78: 0 | D78: 0 | E78: 0.38 | F78: 0 | G78: 1.44 | H78: 0.17 | I78: 0.16 | J78: 22.05 | K78: 5.68 | L78: 0.42 | M78: 0 | N78: 0 | O78: 0 | P78: 96.21 | Q78: 35 | R78: C | S78: 铅钡 | T78: 浅绿 | U78: 无风化
A79: 37 | B79: 60.12 | C79: 0 | D79: 0.23 | E79: 0.89 | F79: 0 | G79: 2.72 | H79: 0 | I79: 3.01 | J79: 17.24 | K79: 10.34 | L79: 1.46 | M79: 0.31 | N79: 0 | O79: 3.66 | P79: 99.98 | Q79: 37 | R79: C | S79: 铅钡 | T79: 深绿 | U79: 无风化
A80: 45 | B80: 61.28 | C80: 2.66 | D80: 0.11 | E80: 0.84 | F80: 0.74 | G80: 5 | H80: 0 | I80: 0.53 | J80: 15.99 | K80: 10.96 | L80: 0 | M80: 0.23 | N80: 0 | O80: 0 | P80: 98.34 | Q80: 45 | R80: A | S80: 铅钡 | T80: 浅蓝 | U80: 无风化
A81: 46 | B81: 55.21 | C81: 0 | D81: 0.25 | E81: 0 | F81: 1.67 | G81: 4.79 | H81: 0 | I81: 0.77 | J81: 25.25 | K81: 10.06 | L81: 0.2 | M81: 0.43 | N81: 0 | O81: 0 | P81: 98.63 | Q81: 46 | R81: A | S81: 铅钡 | T81: 浅蓝 | U81: 无风化
A82: 47 | B82: 51.54 | C82: 4.66 | D82: 0.29 | E82: 0.87 | F82: 0.61 | G82: 3.06 | H82: 0 | I82: 0.65 | J82: 25.4 | K82: 9.23 | L82: 0.1 | M82: 0.85 | N82: 0 | O82: 0 | P82: 97.26 | Q82: 47 | R82: A | S82: 铅钡 | T82: 浅蓝 | U82: 无风化
A83: 55 | B83: 49.01 | C83: 2.71 | D83: 0 | E83: 1.13 | F83: 0 | G83: 1.45 | H83: 0 | I83: 0.86 | J83: 32.92 | K83: 7.95 | L83: 0.35 | M83: 0 | N83: 0 | O83: 0 | P83: 96.38 | Q83: 55 | R83: C | S83: 铅钡 | T83: 绿 | U83: 无风化
B84: =AVERAGE(B71:B83) -> 53.44384615 | C84: =AVERAGE(C71:C83) -> 0.7715384615 | D84: 0.2584615385 | E84: 1.231538462 | F84: 0.4923076923 | G84: 3.194615385 | H84: 0.9330769231 | I84: 1.556923077 | J84: 23.59384615 | K84: 10.49923077 | L84: 0.9038461538 | M84: 0.2969230769 | N84: 0.06461538462 | O84: 0.2815384615 | P84: =ABS(B84-B85) -> 10.84615385 | Q84: =ABS(C84-C85) -> 0.4284615385 | R84: 0.1115384615 | S84: 0.4084615385 | T84: 1.847692308 | U84: 9.555384615 | V84: 0.1230769231 | W84: 0.6169230769 | X84: 11.36384615 | Y84: 8.339230769 | Z84: 0.7138461538 | AA84: 0.08692307692 | AB84: 0.4253846154 | AC84: 0.2815384615
B85: 64.29 | C85: 1.2 | D85: 0.37 | E85: 1.64 | F85: 2.34 | G85: 12.75 | H85: 0.81 | I85: 0.94 | J85: 12.23 | K85: 2.16 | L85: 0.19 | M85: 0.21 | N85: 0.49 | O85: 0 | P85: =SUM(P84:AC84) -> 45.14846154

Sheet 高钾
A1: 文物采样点 | B1: 二氧化硅(SiO2) | C1: 氧化钠(Na2O) | D1: 氧化钾(K2O) | E1: 氧化钙(CaO) | F1: 氧化镁(MgO) | G1: 氧化铝(Al2O3) | H1: 氧化铁(Fe2O3) | I1: 氧化铜(CuO) | J1: 氧化铅(PbO) | K1: 氧化钡(BaO) | L1: 五氧化二磷(P2O5) | M1: 氧化锶(SrO) | N1: 氧化锡(SnO2) | O1: 二氧化硫(SO2) | P1: 百分比 | Q1: 文物编号 | R1: 纹饰 | S1: 类型 | T1: 颜色 | U1: 表面风化
A2: 01 | B2: 69.33 | C2: 0 | D2: 9.99 | E2: 6.32 | F2: 0.87 | G2: 3.93 | H2: 1.74 | I2: 3.87 | J2: 0 | K2: 0 | L2: 1.17 | M2: 0 | N2: 0 | O2: 0.39 | P2: 97.61 | Q2: 01 | R2: C | S2: 高钾 | T2: 蓝绿 | U2: 无风化
A3: 03部位1 | B3: 87.05 | C3: 0 | D3: 5.19 | E3: 2.01 | F3: 0 | G3: 4.06 | H3: 0 | I3: 0.78 | J3: 0.25 | K3: 0 | L3: 0.66 | M3: 0 | N3: 0 | O3: 0 | P3: 100 | Q3: 03 | R3: A | S3: 高钾 | T3: 蓝绿 | U3: 无风化
A4: 03部位2 | B4: 61.71 | C4: 0 | D4: 12.37 | E4: 5.87 | F4: 1.11 | G4: 5.5 | H4: 2.16 | I4: 5.09 | J4: 1.41 | K4: 2.86 | L4: 0.7 | M4: 0.1 | N4: 0 | O4: 0 | P4: 98.88 | Q4: 03 | R4: A | S4: 高钾 | T4: 蓝绿 | U4: 无风化
A5: 04 | B5: 65.88 | C5: 0 | D5: 9.67 | E5: 7.12 | F5: 1.56 | G5: 6.44 | H5: 2.06 | I5: 2.18 | J5: 0 | K5: 0 | L5: 0.79 | M5: 0 | N5: 0 | O5: 0.36 | P5: 96.06 | Q5: 04 | R5: A | S5: 高钾 | T5: 蓝绿 | U5: 无风化
A6: 05 | B6: 61.58 | C6: 0 | D6: 10.95 | E6: 7.35 | F6: 1.77 | G6: 7.5 | H6: 2.62 | I6: 3.27 | J6: 0 | K6: 0 | L6: 0.94 | M6: 0.06 | N6: 0 | O6: 0.47 | P6: 96.51 | Q6: 05 | R6: A | S6: 高钾 | T6: 蓝绿 | U6: 无风化
A7: 06部位1 | B7: 67.65 | C7: 0 | D7: 7.37 | E7: 0 | F7: 1.98 | G7: 11.15 | H7: 2.39 | I7: 2.51 | J7: 0.2 | K7: 1.38 | L7: 4.18 | M7: 0.11 | N7: 0 | O7: 0 | P7: 98.92 | Q7: 06 | R7: A | S7: 高钾 | T7: 蓝绿 | U7: 无风化
A8: 06部位2 | B8: 59.81 | C8: 0 | D8: 7.68 | E8: 5.41 | F8: 1.73 | G8: 10.05 | H8: 6.04 | I8: 2.18 | J8: 0.35 | K8: 0.97 | L8: 4.5 | M8: 0.12 | N8: 0 | O8: 0 | P8: 98.84 | Q8: 06 | R8: A | S8: 高钾 | T8: 蓝绿 | U8: 无风化
A9: 07 | B9: 92.63 | C9: 0 | D9: 0 | E9: 1.07 | F9: 0 | G9: 1.98 | H9: 0.17 | I9: 3.24 | J9: 0 | K9: 0 | L9: 0.61 | M9: 0 | N9: 0 | O9: 0 | P9: 99.7 | Q9: 07 | R9: B | S9: 高钾 | T9: 蓝绿 | U9: 风化
A10: 09 | B10: 95.02 | C10: 0 | D10: 0.59 | E10: 0.62 | F10: 0 | G10: 1.32 | H10: 0.32 | I10: 1.55 | J10: 0 | K10: 0 | L10: 0.35 | M10: 0 | N10: 0 | O10: 0 | P10: 99.77 | Q10: 09 | R10: B | S10: 高钾 | T10: 蓝绿 | U10: 风化
A11: 10 | B11: 96.77 | C11: 0 | D11: 0.92 | E11: 0.21 | F11: 0 | G11: 0.81 | H11: 0.26 | I11: 0.84 | J11: 0 | K11: 0 | L11: 0 | M11: 0 | N11: 0 | O11: 0 | P11: 99.81 | Q11: 10 | R11: B | S11: 高钾 | T11: 蓝绿 | U11: 风化
A12: 12 | B12: 94.29 | C12: 0 | D12: 1.01 | E12: 0.72 | F12: 0 | G12: 1.46 | H12: 0.29 | I12: 1.65 | J12: 0 | K12: 0 | L12: 0.15 | M12: 0 | N12: 0 | O12: 0 | P12: 99.57 | Q12: 12 | R12: B | S12: 高钾 | T12: 蓝绿 | U12: 风化
A13: 13 | B13: 59.01 | C13: 2.86 | D13: 12.53 | E13: 8.7 | F13: 0 | G13: 6.16 | H13: 2.88 | I13: 4.73 | J13: 0 | K13: 0 | L13: 1.27 | M13: 0 | N13: 0 | O13: 0 | P13: 98.14 | Q13: 13 | R13: C | S13: 高钾 | T13: 浅蓝 | U13: 无风化
A14: 14 | B14: 62.47 | C14: 3.38 | D14: 12.28 | E14: 8.23 | F14: 0.66 | G14: 9.23 | H14: 0.5 | I14: 0.47 | J14: 1.62 | K14: 0 | L14: 0.16 | M14: 0 | N14: 0 | O14: 0 | P14: 99 | Q14: 14 | R14: C | S14: 高钾 | T14: 深绿 | U14: 无风化
A15: 16 | B15: 65.18 | C15: 2.1 | D15: 14.52 | E15: 8.27 | F15: 0.52 | G15: 6.18 | H15: 0.42 | I15: 1.07 | J15: 0.11 | K15: 0 | L15: 0 | M15: 0.04 | N15: 0 | O15: 0 | P15: 98.41 | Q15: 16 | R15: C | S15: 高钾 | T15: 浅蓝 | U15: 无风化
A16: 18 | B16: 79.46 | C16: 0 | D16: 9.42 | E16: 0 | F16: 1.53 | G16: 3.05 | H16: 0 | I16: 0 | J16: 0 | K16: 0 | L16: 1.36 | M16: 0.07 | N16: 2.36 | O16: 0 | P16: 97.25 | Q16: 18 | R16: A | S16: 高钾 | T16: 深蓝 | U16: 无风化
A17: 21 | B17: 76.68 | C17: 0 | D17: 0 | E17: 4.71 | F17: 1.22 | G17: 6.19 | H17: 2.37 | I17: 3.28 | J17: 1 | K17: 1.97 | L17: 1.1 | M17: 0 | N17: 0 | O17: 0 | P17: 98.52 | Q17: 21 | R17: A | S17: 高钾 | T17: 蓝绿 | U17: 无风化
A18: 22 | B18: 92.35 | C18: 0 | D18: 0.74 | E18: 1.66 | F18: 0.64 | G18: 3.5 | H18: 0.35 | I18: 0.55 | J18: 0 | K18: 0 | L18: 0.21 | M18: 0 | N18: 0 | O18: 0 | P18: 100 | Q18: 22 | R18: B | S18: 高钾 | T18: 蓝绿 | U18: 风化
A19: 27 | B19: 92.72 | C19: 0 | D19: 0 | E19: 0.94 | F19: 0.54 | G19: 2.51 | H19: 0.2 | I19: 1.54 | J19: 0 | K19: 0 | L19: 0.36 | M19: 0 | N19: 0 | O19: 0 | P19: 98.81 | Q19: 27 | R19: B | S19: 高钾 | T19: 蓝绿 | U19: 风化

Sheet 铅钡
A1: 文物采样点 | B1: 二氧化硅(SiO2) | C1: 氧化钠(Na2O) | D1: 氧化钾(K2O) | E1: 氧化钙(CaO) | F1: 氧化镁(MgO) | G1: 氧化铝(Al2O3) | H1: 氧化铁(Fe2O3) | I1: 氧化铜(CuO) | J1: 氧化铅(PbO) | K1: 氧化钡(BaO) | L1: 五氧化二磷(P2O5) | M1: 氧化锶(SrO) | N1: 氧化锡(SnO2) | O1: 二氧化硫(SO2) | P1: 百分比 | Q1: 文物编号 | R1: 纹饰 | S1: 类型 | T1: 颜色 | U1: 表面风化
A2: 02 | B2: 36.28 | C2: 0 | D2: 1.05 | E2: 2.34 | F2: 1.18 | G2: 5.73 | H2: 1.86 | I2: 0.26 | J2: 47.43 | K2: 0 | L2: 3.57 | M2: 0.19 | N2: 0 | O2: 0 | P2: 99.89 | Q2: 02 | R2: A | S2: 铅钡 | T2: 浅蓝 | U2: 风化
A3: 08 | B3: 20.14 | C3: 0 | D3: 0 | E3: 1.48 | F3: 0 | G3: 1.34 | H3: 0 | I3: 10.41 | J3: 28.68 | K3: 31.23 | L3: 3.59 | M3: 0.37 | N3: 0 | O3: 2.58 | P3: 99.82 | Q3: 08 | R3: C | S3: 铅钡 | T3: 紫 | U3: 风化
A4: 08严重风化点 | B4: 4.61 | C4: 0 | D4: 0 | E4: 3.19 | F4: 0 | G4: 1.11 | H4: 0 | I4: 3.14 | J4: 32.45 | K4: 30.62 | L4: 7.56 | M4: 0.53 | N4: 0 | O4: 15.03 | P4: 98.24 | Q4: 08 | R4: C | S4: 铅钡 | T4: 紫 | U4: 风化
A5: 11 | B5: 33.59 | C5: 0 | D5: 0.21 | E5: 3.51 | F5: 0.71 | G5: 2.69 | H5: 0 | I5: 4.93 | J5: 25.39 | K5: 14.61 | L5: 9.38 | M5: 0.37 | N5: 0 | O5: 0 | P5: 95.39 | Q5: 11 | R5: C | S5: 铅钡 | T5: 浅蓝 | U5: 风化
A6: 19 | B6: 29.64 | C6: 0 | D6: 0 | E6: 2.93 | F6: 0.59 | G6: 3.57 | H6: 1.33 | I6: 3.51 | J6: 42.82 | K6: 5.35 | L6: 8.83 | M6: 0.19 | N6: 0 | O6: 0 | P6: 98.76 | Q6: 19 | R6: A | S6: 铅钡 | T6: 0 | U6: 风化
A7: 20 | B7: 37.36 | C7: 0 | D7: 0.71 | E7: 0 | F7: 0 | G7: 5.45 | H7: 1.51 | I7: 4.78 | J7: 9.3 | K7: 23.55 | L7: 5.75 | M7: 0 | N7: 0 | O7: 0 | P7: 88.41 | Q7: 20 | R7: A | S7: 铅钡 | T7: 浅蓝 | U7: 无风化
A8: 23未风化点 | B8: 53.79 | C8: 7.92 | D8: 0 | E8: 0.5 | F8: 0.71 | G8: 1.42 | H8: 0 | I8: 2.99 | J8: 16.98 | K8: 11.86 | L8: 0 | M8: 0.33 | N8: 0 | O8: 0 | P8: 96.5 | Q8: 23 | R8: A | S8: 铅钡 | T8: 蓝绿 | U8: 风化
A9: 24 | B9: 31.94 | C9: 0 | D9: 0 | E9: 0.47 | F9: 0 | G9: 1.59 | H9: 0 | I9: 8.46 | J9: 29.14 | K9: 26.23 | L9: 0.14 | M9: 0.91 | N9: 0 | O9: 0 | P9: 98.88 | Q9: 24 | R9: C | S9: 铅钡 | T9: 紫 | U9: 无风化
A10: 25未风化点 | B10: 50.61 | C10: 2.31 | D10: 0 | E10: 0.63 | F10: 0 | G10: 1.9 | H10: 1.55 | I10: 1.12 | J10: 31.9 | K10: 6.65 | L10: 0.19 | M10: 0.2 | N10: 0 | O10: 0 | P10: 97.06 | Q10: 25 | R10: C | S10: 铅钡 | T10: 浅蓝 | U10: 风化
A11: 26 | B11: 19.79 | C11: 0 | D11: 0 | E11: 1.44 | F11: 0 | G11: 0.7 | H11: 0 | I11: 10.57 | J11: 29.53 | K11: 32.25 | L11: 3.13 | M11: 0.45 | N11: 0 | O11: 1.96 | P11: 99.82 | Q11: 26 | R11: C | S11: 铅钡 | T11: 紫 | U11: 风化
A12: 26严重风化点 | B12: 3.72 | C12: 0 | D12: 0.4 | E12: 3.01 | F12: 0 | G12: 1.18 | H12: 0 | I12: 3.6 | J12: 29.92 | K12: 35.45 | L12: 6.04 | M12: 0.62 | N12: 0 | O12: 15.95 | P12: 99.89 | Q12: 26 | R12: C | S12: 铅钡 | T12: 紫 | U12: 风化
A13: 28未风化点 | B13: 68.08 | C13: 0 | D13: 0.26 | E13: 1.34 | F13: 1 | G13: 4.7 | H13: 0.41 | I13: 0.33 | J13: 17.14 | K13: 4.04 | L13: 1.04 | M13: 0.12 | N13: 0.23 | O13: 0 | P13: 98.69 | Q13: 28 | R13: A | S13: 铅钡 | T13: 浅蓝 | U13: 风化
A14: 29未风化点 | B14: 63.3 | C14: 0.92 | D14: 0.3 | E14: 2.98 | F14: 1.49 | G14: 14.34 | H14: 0.81 | I14: 0.74 | J14: 12.31 | K14: 2.03 | L14: 0.41 | M14: 0.25 | N14: 0 | O14: 0 | P14: 99.88 | Q14: 29 | R14: A | S14: 铅钡 | T14: 浅蓝 | U14: 风化
A15: 30部位1 | B15: 34.34 | C15: 0 | D15: 1.41 | E15: 4.49 | F15: 0.98 | G15: 4.35 | H15: 2.12 | I15: 0 | J15: 39.22 | K15: 10.29 | L15: 0 | M15: 0.35 | N15: 0.4 | O15: 0 | P15: 97.95 | Q15: 30 | R15: A | S15: 铅钡 | T15: 深蓝 | U15: 无风化
A16: 30部位2 | B16: 36.93 | C16: 0 | D16: 0 | E16: 4.24 | F16: 0.51 | G16: 3.86 | H16: 2.74 | I16: 0 | J16: 37.74 | K16: 10.35 | L16: 1.41 | M16: 0.48 | N16: 0.44 | O16: 0 | P16: 98.7 | Q16: 30 | R16: A | S16: 铅钡 | T16: 深蓝 | U16: 无风化
A17: 31 | B17: 65.91 | C17: 0 | D17: 0 | E17: 1.6 | F17: 0.89 | G17: 3.11 | H17: 4.59 | I17: 0.44 | J17: 16.55 | K17: 3.42 | L17: 1.62 | M17: 0.3 | N17: 0 | O17: 0 | P17: 98.43 | Q17: 31 | R17: C | S17: 铅钡 | T17: 紫 | U17: 无风化
A18: 32 | B18: 69.71 | C18: 0 | D18: 0.21 | E18: 0.46 | F18: 0 | G18: 2.36 | H18: 1 | I18: 0.11 | J18: 19.76 | K18: 4.88 | L18: 0.17 | M18: 0 | N18: 0 | O18: 0 | P18: 98.66 | Q18: 32 | R18: C | S18: 铅钡 | T18: 浅绿 | U18: 无风化
A19: 33 | B19: 75.51 | C19: 0 | D19: 0.15 | E19: 0.64 | F19: 1 | G19: 2.35 | H19: 0 | I19: 0.47 | J19: 16.16 | K19: 3.55 | L19: 0.13 | M19: 0 | N19: 0 | O19: 0 | P19: 99.96 | Q19: 33 | R19: C | S19: 铅钡 | T19: 深绿 | U19: 无风化
A20: 34 | B20: 35.78 | C20: 0 | D20: 0.25 | E20: 0.78 | F20: 0 | G20: 1.62 | H20: 0.47 | I20: 1.51 | J20: 46.55 | K20: 10 | L20: 0.34 | M20: 0.22 | N20: 0 | O20: 0 | P20: 97.52 | Q20: 34 | R20: C | S20: 铅钡 | T20: 深绿 | U20: 风化
A21: 35 | B21: 65.91 | C21: 0 | D21: 0 | E21: 0.38 | F21: 0 | G21: 1.44 | H21: 0.17 | I21: 0.16 | J21: 22.05 | K21: 5.68 | L21: 0.42 | M21: 0 | N21: 0 | O21: 0 | P21: 96.21 | Q21: 35 | R21: C | S21: 铅钡 | T21: 浅绿 | U21: 无风化
A22: 36 | B22: 39.57 | C22: 2.22 | D22: 0.14 | E22: 0.37 | F22: 0 | G22: 1.6 | H22: 0.32 | I22: 0.68 | J22: 41.61 | K22: 10.83 | L22: 0.07 | M22: 0.22 | N22: 0 | O22: 0 | P22: 97.63 | Q22: 36 | R22: C | S22: 铅钡 | T22: 深绿 | U22: 风化
A23: 37 | B23: 60.12 | C23: 0 | D23: 0.23 | E23: 0.89 | F23: 0 | G23: 2.72 | H23: 0 | I23: 3.01 | J23: 17.24 | K23: 10.34 | L23: 1.46 | M23: 0.31 | N23: 0 | O23: 3.66 | P23: 99.98 | Q23: 37 | R23: C | S23: 铅钡 | T23: 深绿 | U23: 无风化
A24: 38 | B24: 32.93 | C24: 1.38 | D24: 0 | E24: 0.68 | F24: 0 | G24: 2.57 | H24: 0.29 | I24: 0.73 | J24: 49.31 | K24: 9.79 | L24: 0.48 | M24: 0.41 | N24: 0 | O24: 0 | P24: 98.57 | Q24: 38 | R24: C | S24: 铅钡 | T24: 深绿 | U24: 风化
A25: 39 | B25: 26.25 | C25: 0 | D25: 0 | E25: 1.11 | F25: 0 | G25: 0.5 | H25: 0 | I25: 0.88 | J25: 61.03 | K25: 7.22 | L25: 1.16 | M25: 0.61 | N25: 0 | O25: 0 | P25: 98.76 | Q25: 39 | R25: C | S25: 铅钡 | T25: 深绿 | U25: 风化
A26: 40 | B26: 16.71 | C26: 0 | D26: 0 | E26: 1.87 | F26: 0 | G26: 0.45 | H26: 0.19 | I26: 0 | J26: 70.21 | K26: 6.69 | L26: 1.77 | M26: 0.68 | N26: 0 | O26: 0 | P26: 98.57 | Q26: 40 | R26: C | S26: 铅钡 | T26: 0 | U26: 风化
A27: 41 | B27: 18.46 | C27: 0 | D27: 0.44 | E27: 4.96 | F27: 2.73 | G27: 3.33 | H27: 1.79 | I27: 0.19 | J27: 44.12 | K27: 9.76 | L27: 7.46 | M27: 0.47 | N27: 0 | O27: 0 | P27: 93.71 | Q27: 41 | R27: C | S27: 铅钡 | T27: 浅绿 | U27: 风化
A28: 42未风化点1 | B28: 51.26 | C28: 5.74 | D28: 0.15 | E28: 0.79 | F28: 1.09 | G28: 3.53 | H28: 0 | I28: 2.67 | J28: 21.88 | K28: 10.47 | L28: 0.08 | M28: 0.35 | N28: 0 | O28: 0 | P28: 98.01 | Q28: 42 | R28: A | S28: 铅钡 | T28: 浅蓝 | U28: 风化
A29: 42未风化点2 | B29: 51.33 | C29: 5.68 | D29: 0.35 | E29: 0 | F29: 1.16 | G29: 5.66 | H29: 0 | I29: 2.72 | J29: 20.12 | K29: 10.88 | L29: 0 | M29: 0 | N29: 0 | O29: 0 | P29: 97.9 | Q29: 42 | R29: A | S29: 铅钡 | T29: 浅蓝 | U29: 风化
A30: 43部位1 | B30: 12.41 | C30: 0 | D30: 0 | E30: 5.24 | F30: 0.89 | G30: 2.25 | H30: 0.76 | I30: 5.35 | J30: 59.85 | K30: 7.29 | L30: 0 | M30: 0.64 | N30: 0 | O30: 0 | P30: 94.68 | Q30: 43 | R30: C | S30: 铅钡 | T30: 浅蓝 | U30: 风化
A31: 43部位2 | B31: 21.7 | C31: 0 | D31: 0 | E31: 6.4 | F31: 0.95 | G31: 3.41 | H31: 1.39 | I31: 1.51 | J31: 44.75 | K31: 3.26 | L31: 12.83 | M31: 0.47 | N31: 0 | O31: 0 | P31: 96.67 | Q31: 43 | R31: C | S31: 铅钡 | T31: 浅蓝 | U31: 风化
A32: 44未风化点 | B32: 60.74 | C32: 3.06 | D32: 0.2 | E32: 2.14 | F32: 0 | G32: 12.69 | H32: 0.77 | I32: 0.43 | J32: 13.61 | K32: 5.22 | L32: 0 | M32: 0.26 | N32: 0 | O32: 0 | P32: 99.12 | Q32: 44 | R32: A | S32: 铅钡 | T32: 浅蓝 | U32: 风化
A33: 45 | B33: 61.28 | C33: 2.66 | D33: 0.11 | E33: 0.84 | F33: 0.74 | G33: 5 | H33: 0 | I33: 0.53 | J33: 15.99 | K33: 10.96 | L33: 0 | M33: 0.23 | N33: 0 | O33: 0 | P33: 98.34 | Q33: 45 | R33: A | S33: 铅钡 | T33: 浅蓝 | U33: 无风化
A34: 46 | B34: 55.21 | C34: 0 | D34: 0.25 | E34: 0 | F34: 1.67 | G34: 4.79 | H34: 0 | I34: 0.77 | J34: 25.25 | K34: 10.06 | L34: 0.2 | M34: 0.43 | N34: 0 | O34: 0 | P34: 98.63 | Q34: 46 | R34: A | S34: 铅钡 | T34: 浅蓝 | U34: 无风化
A35: 47 | B35: 51.54 | C35: 4.66 | D35: 0.29 | E35: 0.87 | F35: 0.61 | G35: 3.06 | H35: 0 | I35: 0.65 | J35: 25.4 | K35: 9.23 | L35: 0.1 | M35: 0.85 | N35: 0 | O35: 0 | P35: 97.26 | Q35: 47 | R35: A | S35: 铅钡 | T35: 浅蓝 | U35: 无风化
A36: 48 | B36: 53.33 | C36: 0.8 | D36: 0.32 | E36: 2.82 | F36: 1.54 | G36: 13.65 | H36: 1.03 | I36: 0 | J36: 15.71 | K36: 7.31 | L36: 1.1 | M36: 0.25 | N36: 1.31 | O36: 0 | P36: 99.17 | Q36: 48 | R36: A | S36: 铅钡 | T36: 0 | U36: 风化
A37: 49 | B37: 28.79 | C37: 0 | D37: 0 | E37: 4.58 | F37: 1.47 | G37: 5.38 | H37: 2.74 | I37: 0.7 | J37: 34.18 | K37: 6.1 | L37: 11.1 | M37: 0.46 | N37: 0 | O37: 0 | P37: 95.5 | Q37: 49 | R37: A | S37: 铅钡 | T37: 黑 | U37: 风化
A38: 49未风化点 | B38: 54.61 | C38: 0 | D38: 0.3 | E38: 2.08 | F38: 1.2 | G38: 6.5 | H38: 1.27 | I38: 0.45 | J38: 23.02 | K38: 4.19 | L38: 4.32 | M38: 0.3 | N38: 0 | O38: 0 | P38: 98.24 | Q38: 49 | R38: A | S38: 铅钡 | T38: 黑 | U38: 风化
A39: 50 | B39: 17.98 | C39: 0 | D39: 0 | E39: 3.19 | F39: 0.47 | G39: 1.87 | H39: 0.33 | I39: 1.13 | J39: 44 | K39: 14.2 | L39: 6.34 | M39: 0.66 | N39: 0 | O39: 0 | P39: 90.17 | Q39: 50 | R39: A | S39: 铅钡 | T39: 黑 | U39: 风化
A40: 50未风化点 | B40: 45.02 | C40: 0 | D40: 0 | E40: 3.12 | F40: 0.54 | G40: 4.16 | H40: 0 | I40: 0.7 | J40: 30.61 | K40: 6.22 | L40: 6.34 | M40: 0.23 | N40: 0 | O40: 0 | P40: 96.94 | Q40: 50 | R40: A | S40: 铅钡 | T40: 黑 | U40: 风化
A41: 51部位1 | B41: 24.61 | C41: 0 | D41: 0 | E41: 3.58 | F41: 1.19 | G41: 5.25 | H41: 1.19 | I41: 1.37 | J41: 40.24 | K41: 8.94 | L41: 8.1 | M41: 0.39 | N41: 0.47 | O41: 0 | P41: 95.33 | Q41: 51 | R41: C | S41: 铅钡 | T41: 浅蓝 | U41: 风化
A42: 51部位2 | B42: 21.35 | C42: 0 | D42: 0 | E42: 5.13 | F42: 1.45 | G42: 2.51 | H42: 0.42 | I42: 0.75 | J42: 51.34 | K42: 0 | L42: 8.75 | M42: 0 | N42: 0 | O42: 0 | P42: 91.7 | Q42: 51 | R42: C | S42: 铅钡 | T42: 浅蓝 | U42: 风化
A43: 52 | B43: 25.74 | C43: 1.22 | D43: 0 | E43: 2.27 | F43: 0.55 | G43: 1.16 | H43: 0.23 | I43: 0.7 | J43: 47.42 | K43: 8.64 | L43: 5.71 | M43: 0.44 | N43: 0 | O43: 0 | P43: 94.08 | Q43: 52 | R43: C | S43: 铅钡 | T43: 浅蓝 | U43: 风化
A44: 53未风化点 | B44: 63.66 | C44: 3.04 | D44: 0.11 | E44: 0.78 | F44: 1.14 | G44: 6.06 | H44: 0 | I44: 0.54 | J44: 13.66 | K44: 8.99 | L44: 0 | M44: 0.27 | N44: 0 | O44: 0 | P44: 98.25 | Q44: 53 | R44: A | S44: 铅钡 | T44: 浅蓝 | U44: 风化
A45: 54 | B45: 22.28 | C45: 0 | D45: 0.32 | E45: 3.19 | F45: 1.28 | G45: 4.15 | H45: 0 | I45: 0.83 | J45: 55.46 | K45: 7.04 | L45: 4.24 | M45: 0.88 | N45: 0 | O45: 0 | P45: 99.67 | Q45: 54 | R45: C | S45: 铅钡 | T45: 浅蓝 | U45: 风化
A46: 54严重风化点 | B46: 17.11 | C46: 0 | D46: 0 | E46: 0 | F46: 1.11 | G46: 3.65 | H46: 0 | I46: 1.34 | J46: 58.46 | K46: 0 | L46: 14.13 | M46: 1.12 | N46: 0 | O46: 0 | P46: 96.92 | Q46: 54 | R46: C | S46: 铅钡 | T46: 浅蓝 | U46: 风化
A47: 55 | B47: 49.01 | C47: 2.71 | D47: 0 | E47: 1.13 | F47: 0 | G47: 1.45 | H47: 0 | I47: 0.86 | J47: 32.92 | K47: 7.95 | L47: 0.35 | M47: 0 | N47: 0 | O47: 0 | P47: 96.38 | Q47: 55 | R47: C | S47: 铅钡 | T47: 绿 | U47: 无风化
A48: 56 | B48: 29.15 | C48: 0 | D48: 0 | E48: 1.21 | F48: 0 | G48: 1.85 | H48: 0 | I48: 0.79 | J48: 41.25 | K48: 15.45 | L48: 2.54 | M48: 0 | N48: 0 | O48: 0 | P48: 92.24 | Q48: 56 | R48: C | S48: 铅钡 | T48: 蓝绿 | U48: 风化
A49: 57 | B49: 25.42 | C49: 0 | D49: 0 | E49: 1.31 | F49: 0 | G49: 2.18 | H49: 0 | I49: 1.16 | J49: 45.1 | K49: 17.3 | L49: 0 | M49: 0 | N49: 0 | O49: 0 | P49: 92.47 | Q49: 57 | R49: C | S49: 铅钡 | T49: 蓝绿 | U49: 风化
A50: 58 | B50: 30.39 | C50: 0 | D50: 0.34 | E50: 3.49 | F50: 0.79 | G50: 3.52 | H50: 0.86 | I50: 3.13 | J50: 39.35 | K50: 7.66 | L50: 8.99 | M50: 0.24 | N50: 0 | O50: 0 | P50: 98.76 | Q50: 58 | R50: C | S50: 铅钡 | T50: 0 | U50: 风化
